Cogmind - Beta 10.2 @@@ ROGUE MODE // 2020.11.04 @ 13:16:23 Player: RIFCRMAccessSterilization Result: Heading to fleet! Performance ------------- Evolutions (9) 4500 Regions Visited (28) 5600 Robots Destroyed (975) 4875 Value Destroyed (58222) 58222 Prototype IDs (93) 1860 Alien Tech Used (18) 3600 Bonus (85992) 85992 TOTAL SCORE: 164649 Bonus ------- Triggered High Security 1000 High Alert Combat Kills 34838 Follower Combat Kills 317 Entered Garrisons 1400 Used RIF Installer 3500 Found Hidden Lab 3000 Used Core Reset Matrix 3000 Scanned by Researcher 500 Pursued by Intercept 1000 Destroyed MAIN.C Guards 500 Met MAIN.C 5000 Destroyed MAIN.C Shell 5000 Destroyed MAIN.C 10000 Met Architect 300 Destroyed A8 300 Destroyed A6 400 Destroyed A4 700 Destroyed A3 800 Destroyed A2 1000 Destroyed Architect 15000 Win 3000 Friendly Fire -4563 Cogmind --------- Core Integrity 137/1600 Matter 436/550 Energy 357/380 System Corruption 1% Temperature Cool (10) Movement Treading (141) Location To Fleet Rendezvous Parts ------- > --- POWER (2) -------- Zero-point Reactor Zero-point Reactor > --- PROPULSION (5) --- Advanced Medium Treads Advanced Heavy Treads Experimental Biometal Heavy Treads > --- UTILITY (15) ----- High-capacity Storage Unit Experimental Targeting Computer Experimental Targeting Computer Experimental Target Analyzer Experimental Weapon Cycler Centrium Linked Plating Centrium Linked Plating Centrium Linked Plating Centrium Linked Plating Centrium Linked Plating Centrium Linked Plating Experimental Powered Armor Experimental Powered Armor Experimental Powered Armor Experimental Powered Armor > --- WEAPON (4) ------- Multirail Multirail Multirail Hypervelocity Multirail > --- INVENTORY (12) --- Improved Quantum Reactor Desublimator Experimental Energy Well (1000) Experimental Matter Compressor (410) Precision Matter Filter Experimental Weapon Cycler Sigix Quantum Sheargun Sigix Quantum Sheargun Multirail Multirail Graviton Cannon Peak State ------------ > --- POWER ------------ Zero-point Reactor Zero-point Reactor > --- PROPULSION ------- Advanced Heavy Treads Experimental Biometal Heavy Treads High-density Centrium Wheel > --- UTILITY ---------- High-capacity Storage Unit Experimental Targeting Computer Experimental Targeting Computer Experimental Target Analyzer Experimental Weapon Cycler Centrium Linked Plating Centrium Linked Plating Centrium Linked Plating Centrium Linked Plating Centrium Linked Plating Centrium Linked Plating Experimental Powered Armor Experimental Powered Armor Experimental Powered Armor Experimental Powered Armor > --- WEAPON ----------- Multirail Multirail Multirail Hypervelocity Multirail > --- INVENTORY -------- Improved Quantum Reactor Desublimator Experimental Energy Well Experimental Matter Compressor Precision Matter Filter Transdimensional Reconstructor Sigix Quantum Sheargun Sigix Quantum Sheargun Modified Quantum Sheargun Multirail Multirail Graviton Cannon [Rating: 262] Favorites ----------- Power Zero-point Reactor Engine Improved Ion Engine Power Core Micro Fission Core Reactor Zero-point Reactor Propulsion Enhanced Armored Medium Treads Treads Enhanced Armored Medium Treads Leg Carbon-fiber Leg Wheel High-density Centrium Wheel Hover Unit Combat Gravmag System Flight Unit VTOL Module Utility High-capacity Storage Unit Device Experimental Coolant Injector Storage High-capacity Storage Unit Processor Experimental Targeting Computer Hackware Deep Network Scanner Protection Centrium Linked Plating Artifact Matter Drive Weapon Multirail Energy Gun Modified Quantum Sheargun Energy Cannon Enhanced Nova Cannon Ballistic Gun Multirail Ballistic Cannon Flak Cannon Launcher Compact Tesla Bomb Launcher Special Weapon Improved Remote Datajack Impact Weapon Heavy Hammer Slashing Weapon Great Axe Piercing Weapon Plasma Lance Special Melee Weapon Improved Datajack Build | -11 -10 -10 -9 -9 -9 -8 -8 -8 -8 -7 -7 -6 -6 -5 -5 -4 -4 -4 -4 -3 -3 -3 -2 -2 -2 -1 -1 -1 ------- Run | Scr Mat Min Mat Sto Gar Mat Gar Mat Gar Fac Gar Fac Gar Fac Gar Fac Was Fac Gar Res Arm Lab Res Qua Sec Acc Com Ac0 Slots Evolved 18 | . . . 2 . . 2 . . . 2 . 2 . 2 . 2 . . . 2 . . 2 . . 2 . . Power 1 | . . . . . . . . . . . . . . 1 . . . . . . . . . . . . . . Propulsion 2 | . . . . . . . . . . 2 . . . . . . . . . . . . . . . . . . Utility 13 | . . . 2 . . 2 . . . . . . . 1 . 2 . . . 2 . . 2 . . 2 . . Weapon 2 | . . . . . . . . . . . . 2 . . . . . . . . . . . . . . . . Parts Attached 932 | 7 47 13 18 8 9 16 9 2 17 16 15 25 28 31 35 5 20 12 8 31 79 17 10 63 41 68 180 102 Power 69 | 1 2 1 2 1 . 2 1 1 . 1 1 6 2 4 4 . 3 2 . 1 8 . . 7 . 3 9 7 Engine 18 | 1 2 1 2 1 . 2 . 1 . 1 . 5 1 . 1 . . . . . . . . . . . . . Core 10 | . . . . . . . 1 . . . 1 1 1 3 1 . 1 . . . . . . . . . 1 . Reactor 41 | . . . . . . . . . . . . . . 1 2 . 2 2 . 1 8 . . 7 . 3 8 7 Propulsion 127 | 2 9 . 4 . 4 3 2 1 1 4 5 5 6 7 9 . 6 4 . 3 8 1 . 5 . 5 25 8 Treads 84 | 2 7 . 2 . 2 2 2 1 1 1 5 4 1 3 . . 2 4 . 3 8 1 . 5 . 5 19 4 Leg 14 | . . . . . . . . . . . . 1 5 2 3 . . . . . . . . . . . 3 . Wheel 23 | . 2 . 2 . 2 1 . . . 3 . . . 2 4 . . . . . . . . . . . 3 4 Hover 4 | . . . . . . . . . . . . . . . . . 4 . . . . . . . . . . . Flight 2 | . . . . . . . . . . . . . . . 2 . . . . . . . . . . . . . Utility 390 | 2 7 3 3 . . 8 4 . 3 3 3 4 5 10 15 3 3 4 2 12 36 10 8 37 29 41 92 43 Device 228 | 1 1 1 . . . 1 1 . . 2 . . 4 4 7 1 1 3 2 7 25 6 5 24 20 29 62 21 Storage 25 | . 3 2 . . . 1 1 . 1 . 1 1 1 3 1 . . . . . . . . 3 1 . 5 1 Processor 21 | 1 . . . . . . . . . . . 1 . 1 . 1 . . . 2 1 . . 3 . 4 5 2 Hackware 17 | . . . 2 . . . . . 1 1 . 1 . 1 3 1 . 1 . 1 2 . 1 1 . 1 . . Protection 90 | . 3 . 1 . . 6 2 . 1 . 2 1 . 1 4 . 2 . . 2 8 4 2 3 4 7 18 19 Artifact 9 | . . . . . . . . . . . . . . . . . . . . . . . . 3 4 . 2 . Weapon 346 | 2 29 9 9 7 5 3 2 . 13 8 6 10 15 10 7 2 8 2 6 15 27 6 2 14 12 19 54 44 Energy Gun 45 | . . . . 1 . . . . . . 1 . 1 4 1 . . . . . 2 2 . 1 . . 8 24 Energy Cannon 32 | . . . 3 4 2 . . . 3 2 . . . . 3 . 1 . . . 7 2 1 1 2 . 1 . Ballistic Gun 130 | 2 14 1 . 1 . . . . . . . 8 10 1 . . 4 1 5 8 9 . 1 . 7 11 30 17 Ballistic Cannon 42 | . 6 3 4 . 2 2 1 . 3 2 1 . . 1 1 1 . . . . 1 . . 6 . 2 3 3 Launcher 55 | . . 3 1 1 1 . . . 2 2 4 . 2 . 1 1 . . 1 5 7 2 . 3 3 4 12 . Special Weapon 11 | . 6 . . . . . . . . . . . . . 1 . 1 1 . 1 . . . 1 . . . . Impact Weapon 8 | . 3 1 1 . . 1 . . . . . . . . . . . . . . . . . 2 . . . . Slashing Weapon 13 | . . . . . . . . . 4 . . 1 2 3 . . 1 . . 1 1 . . . . . . . Piercing Weapon 2 | . . . . . . . . . . . . . . . . . . . . . . . . . . 2 . . Special Melee Weapon 8 | . . 1 . . . . 1 . 1 2 . 1 . 1 . . 1 . . . . . . . . . . . Unidentified Prototypes 80 | . . . . 4 . . . . . . . . . . . 1 . . . . 10 9 1 22 . 4 24 5 Parts Lost 94 | . 1 . . 1 2 4 1 . 3 1 10 2 13 8 11 8 . . . 1 . . 1 1 . 3 6 17 Power 10 | . 1 . . . . 1 1 . . . 1 . 1 . 2 1 . . . . . . . . . . 1 1 Propulsion 28 | . . . . . . 1 . . . . 5 1 5 6 4 3 . . . . . . . . . . 2 1 Utility 23 | . . . . . . 1 . . 1 . 2 1 1 . 2 1 . . . 1 . . 1 1 . 3 2 6 Weapon 33 | . . . . 1 2 1 . . 2 1 2 . 6 2 3 3 . . . . . . . . . . 1 9 Highest Loss Streak 10 | . 1 . . 1 2 2 1 . 3 1 10 2 8 4 8 8 . . . 1 . . 1 1 . 1 1 8 Average Slot Usage (%) 87 | . 96 99 89 100 99 98 88 89 89 98 93 99 86 96 91 98 87 80 78 79 84 80 81 81 82 78 84 91 Engine 2 | . 11 14 10 11 11 8 4 3 9 7 2 2 3 2 . . . . . . . . . . . . . . Reactor 4 | . . . . . . . . . . . . . . 1 3 5 4 10 10 9 8 9 8 7 4 2 5 6 Treads 11 | . 25 28 16 . 11 5 18 18 18 7 20 25 6 4 3 . 5 12 10 9 9 9 8 12 16 11 10 7 Wheel 2 | . 2 . 5 22 11 12 . . . 22 7 . . 1 12 20 . . . . . . . . . . 1 4 Device 9 | . 2 . . . . 5 . . . 10 5 . 2 8 6 10 10 9 10 9 17 16 20 15 16 16 11 8 Storage 14 | . 15 27 22 22 22 18 18 18 26 23 23 13 15 14 15 15 15 15 15 14 14 14 13 13 13 11 12 6 Processor 7 | . . . . . . . . . . . . 3 6 7 7 10 8 5 5 7 4 4 4 4 1 6 14 12 Hackware 3 | . . . 4 22 22 18 18 18 9 9 7 12 7 5 7 5 3 . . 4 1 . 3 4 4 2 . . Protection 9 | . 9 . 8 . . 11 8 9 9 . 8 8 1 1 1 4 4 5 5 4 9 9 4 5 4 6 9 27 Energy Gun 1 | . . . . . . . . . . . 4 . . 1 3 . . . . . . 1 . . . . . 5 Energy Cannon 1 | . . . 7 21 7 . . . 6 10 1 . . . 2 4 1 . . . . 1 2 1 2 . . . Ballistic Gun 9 | . 22 5 . . . . . . . . . 25 22 7 . . 11 21 20 16 13 12 10 2 5 11 11 9 Ballistic Cannon 2 | . 2 9 9 . 12 17 17 18 10 1 2 . . 1 5 5 . . . . . . . 6 1 . . . Launcher 1 | . . 8 4 . 1 . . . . 1 3 . . . . 4 . . . 1 3 . 4 3 3 3 1 . Naked Turns . | . . . . . . . . . . . . . . . . . . . . . . . . . . . . . Heaviest Build 265 | 8 74 77 98 80 84 98 98 98 130 128 121 121 94 119 154 151 185 194 196 210 213 231 222 265 234 219 225 213 Greatest Support 200 | 40 40 40 40 24 40 40 40 40 40 36 80 80 61 81 53 48 140 140 140 140 150 155 155 195 195 200 200 185 Greatest Overweight (x) 46 | . 7 1 7 3 3 3 2 2 3 5 3 1 5 4 46 10 1 2 1 1 1 1 1 1 1 1 10 5 Average Overweight (x) 1 | . 1 1 2 2 2 2 1 2 2 3 1 . 1 1 4 3 . 1 1 1 1 1 1 1 . . 1 1 Largest Inventory Capacity 28 | 4 20 20 20 20 20 20 20 20 28 28 28 28 20 28 28 28 28 28 28 28 28 28 28 28 28 28 28 28 Average Capacity 24 | 4 12 19 20 20 20 20 20 20 27 28 28 20 20 20 25 28 28 28 28 28 28 28 28 28 28 28 28 17 Most Carried 28 | 4 19 20 20 20 20 20 20 20 23 27 26 20 20 20 28 28 28 28 28 28 28 28 27 28 28 28 28 28 Average Carried 23 | 1 11 17 19 19 19 19 19 19 20 22 21 19 19 19 21 26 24 27 28 26 27 26 25 26 27 27 27 17 Final Capacity 28 | 4 20 20 20 20 20 20 20 20 28 28 28 20 20 20 28 28 28 28 28 28 28 28 28 28 28 28 28 12 Final Carried 28 | 4 17 20 19 20 19 20 19 20 23 26 20 20 20 20 27 28 27 28 28 26 27 27 23 28 28 27 28 12 Class Distribution -------------------- 17% | Hauler-Mutant 12% | Scavenger-Mutant 10% | Scavenger-Tank 9% | Alien-Mutant 8% | Alien-Gunner 8% | Scavenger-Gunner 7% | Hacker-Mutant 4% | Alien-Bomber 4% | Bothacker-Mutant 3% | Bothacker-Tank Dominant Class ---------------- Mutant | -10/Materials Hauler-Mutant | -10/Mines Hauler-Mutant | -9/Materials Hacker-Mutant | -9/Storage Hacker-Mutant | -9/Garrison Hacker-Mutant | -8/Materials Hacker-Mutant | -8/Garrison Hacker-Mutant | -8/Materials Bothacker-Mutant | -8/Garrison Hauler-Mutant | -7/Factory Hauler-Mutant | -7/Garrison Scavenger-Tank | -6/Factory Scavenger-Gunner | -6/Garrison Bothacker-Gunner | -5/Factory Botlord-Mutant | -5/Garrison Botlord-Mutant | -4/Factory Botlord-Gunner | -4/Waste Bothacker-Tank | -4/Factory Bothacker-Tank | -4/Garrison Bothacker-Tank | -3/Research Hauler-Mutant | -3/Armory Hauler-Mutant | -3/Lab Hauler-Mutant | -2/Research Scavenger-Mutant | -2/Quarantine Alien-Mutant | -2/Section 7 Alien-Mutant | -1/Access Scavenger-Gunner | -1/Command Scavenger-Tank | -1/Access_0 Resources | -11 -10 -10 -9 -9 -9 -8 -8 -8 -8 -7 -7 -6 -6 -5 -5 -4 -4 -4 -4 -3 -3 -3 -2 -2 -2 -1 -1 -1 ----------- Run | Scr Mat Min Mat Sto Gar Mat Gar Mat Gar Fac Gar Fac Gar Fac Gar Fac Was Fac Gar Res Arm Lab Res Qua Sec Acc Com Ac0 Matter Collected 27846 | 354 746 291 463 110 100 1076 264 238 293 224 239 654 607 690 582 27 671 344 549 984 1904 90 328 1025 1693 2597 6820 3883 Remotely 5677 | . . . . . . . . . . . . . . 430 . . . . 238 498 847 . 297 . . 1559 1491 317 Salvage Created 64286 | 146 601 47 499 734 138 1113 302 72 822 302 296 615 613 1133 950 161 988 530 788 3418 4178 90 1203 1876 5328 11389 21057 4897 Parts 2479 | 11 39 . 26 45 11 57 28 5 42 13 20 32 28 41 40 4 38 38 42 164 173 8 60 100 165 412 559 278 Haulers Intercepted 14 | . 2 . 2 3 . 3 . . . . . . . . . . . . . 2 . . . . . 2 . . Recyclers Shooed 15 | . 2 . 2 . . 2 . . . . . . . 1 . . . . . 4 . . 1 . . 1 2 . Parts Field Recycled 155 | . . . . . . . . . . . . . . . . . . . . . 10 11 5 30 6 29 64 . Retrieved Matter 4536 | . . . . . . . . . . . . . . . . . . . . . 265 271 421 1071 211 925 1372 . Parts Self-Destructed . | . . . . . . . . . . . . . . . . . . . . . . . . . . . . . Prevented . | . . . . . . . . . . . . . . . . . . . . . . . . . . . . . Kills | -11 -10 -10 -9 -9 -9 -8 -8 -8 -8 -7 -7 -6 -6 -5 -5 -4 -4 -4 -4 -3 -3 -3 -2 -2 -2 -1 -1 -1 ------- Run | Scr Mat Min Mat Sto Gar Mat Gar Mat Gar Fac Gar Fac Gar Fac Gar Fac Was Fac Gar Res Arm Lab Res Qua Sec Acc Com Ac0 Combat Hostiles Destroyed 793 | . 10 9 11 14 4 24 15 2 15 8 17 9 16 14 15 2 . 11 19 31 49 1 12 20 55 147 217 46 Melee 6 | . . . . . . . . . 1 . . . 1 4 . . . . . . . . . . . . . . Guns 294 | . 5 1 . . . . . . . . 4 9 12 8 . . . 11 15 7 16 . . 1 7 20 132 46 Cannons 104 | . 5 1 8 10 2 24 15 2 6 4 3 . . 2 12 1 . . . . 1 1 . 2 5 . . . AOE 202 | . . 7 2 4 2 . . . 8 4 10 . 3 . 3 . . . 4 10 10 . 5 2 16 75 37 . Classes Destroyed 26 | 3 6 1 3 1 . 1 . . . . . . . 1 . . 1 . . . 3 . 1 1 2 1 1 . Worker 48 | 1 3 1 . . . 2 . . . . . 1 . 4 . . . . . 8 . . 1 . 1 12 14 . Builder 16 | . 2 . . . . . . . . . . . . . . . . . . 5 . . . . 1 8 . . Tunneler 9 | 4 . . . . . 2 . . . . . . . . . . . . . 1 . . 1 . . 1 . . Hauler 14 | . 2 . 2 3 . 3 . . . . . . . . . . . . . 2 . . . . . 2 . . Recycler 33 | 1 2 . 1 1 . 3 . . . . . 1 . 3 . . . 1 . 2 . . 1 . 1 6 10 . Mechanic 15 | . 1 . . . . . . . . . . . . . . . . . . 1 1 . . . 1 4 7 . Operator 6 | . . . 1 . . . . . . . . . . . . . . . . . 2 . 1 . 1 1 . . Watcher 20 | . 2 . . . . 1 . . . . . . . . . . . . . 2 1 . . . 3 7 4 . Swarmer 143 | . 3 . . 3 . . 7 . 7 3 12 4 11 7 14 . . 9 13 4 2 . 5 . . 29 10 . Saboteur 18 | . . . . . . . . . . . . . . . . . . . . . 1 . . . 1 6 10 . Grunt 244 | . 7 . 6 8 2 13 2 . 4 3 5 2 3 4 2 2 . . 2 8 20 . . . 25 46 80 . Brawler 34 | . . . 1 . . 2 2 . . . . . . . . . . . 1 1 2 . . . 3 9 13 . Duelist 32 | . . . . 1 . . . . . . . 1 . . . . . . 1 2 3 . . . 2 13 9 . Protector 18 | . . . . . . . . . . . . . . . . . . . . . 2 . . . . 5 11 . Researcher 1 | . . . . . . . . . . . . . . . . . . . . . . . . . 1 . . . Sentry 61 | . . . 4 2 2 8 3 2 4 2 . 2 2 2 . . . . 1 4 4 . 3 . 7 5 4 . Demolisher 2 | . . . . . . . . . . . . . . . . . . . . . 1 . . . . . 1 . Specialist 4 | . . . . . . . . . . . . . . . . . . . . . 4 . . . . . . . Hunter 49 | . . . . . . 1 1 . . . . . . . . . . . . 9 . . 2 3 4 12 17 . Programmer 65 | . . . . . . . . . . . . . . 1 . . . 2 1 3 10 . . 1 6 15 26 . Behemoth 8 | . . . . . . . . . . . . . . . . . . . . . . . 2 . . 2 4 . Quarantine Guard 11 | . . . . . . . . . . . . . . . . . . . . . . . . 11 . . . . S7 Guard 1 | . . . . . . . . . . . . . . . . . . . . . . . . . 1 . . . M Guard 2 | . . . . . . . . . . . . . . . . . . . . . . . . . . . 2 . Enhanced Grunt 27 | . . . . . . . . . . . . . . . . . . . . . . . . . . . . 27 Enhanced Sentry 5 | . . . . . . . . . . . . . . . . . . . . . . . . . . . . 5 Enhanced Hunter 8 | . . . . . . . . . . . . . . . . . . . . . . . . . . . . 8 Tracker 4 | . . . . . . . . . . . . . . . . . . . . . . . . 2 2 . . . Combat Programmer 6 | . . . . . . . . . . . . . . . . . . . . . . . . 2 2 . 2 . Investigator 3 | . . . . . . . . . . . . . . . . . . . . . . . . . . 1 2 . Striker 16 | . . . . . . . . . . . . . . . . . . . . . . . . . . 4 12 . Executioner 16 | . . . . . . . . . . . . . . . . . . . . . . . . . 2 1 13 . Alpha 7 1 | . . . . . . . . . . . . . . . . . . . . . . . . . . . 1 . Fortress 1 | . . . . . . . . . . . . . . . . . . . . . . . . 1 . . . . Assembled 9 | . . 9 . . . . . . . . . . . . . . . . . . . . . . . . . . Surgeon 2 | . . . . . . . . . . . . . . . . . 2 . . . . . . . . . . . Wasp 4 | . . . . . . . . . . . . . . . . . 4 . . . . . . . . . . . Thug 6 | . . . . . . . . . . . . . . . . . 5 . . . 1 . . . . . . . Butcher 2 | . . . . . . . . . . . . . . . . . 2 . . . . . . . . . . . Martyr 2 | . . . . . . . . . . . . . . . . . 2 . . . . . . . . . . . Best Kill Streak 33 | 5 4 3 4 5 4 6 11 1 7 3 13 6 5 5 8 2 . 6 11 18 11 1 5 4 10 33 32 4 Combat Bots Only 30 | . 3 3 3 4 4 4 11 1 7 3 13 5 5 5 8 2 . 5 11 12 10 1 5 4 9 24 30 4 Max Kills in Single Turn 7 | 1 1 1 2 3 1 2 2 1 4 2 3 1 2 1 3 1 1 2 3 3 2 1 2 1 3 7 4 2 Gunslinging 1 | . . . . . . . . . . . . . . . . . . 1 . . . . . . . . 1 1 Exploded 6 | . . 1 2 3 1 . . . 4 2 3 . 2 . 3 . . . 3 2 1 . 2 1 2 6 4 . Melee 1 | . . . . . . . . . 1 . . . 1 1 . . . . . . . . . . . . . . Uniques/NPCs Destroyed 9 | . . . . . . . . . . . . . . . . . . . . . . 1 . . . . 2 6 A5 (-3/Lab) MAIN.C Shell (-1/Command) MAIN.C (-1/Command) A8 (-1/Access_0) A6 (-1/Access_0) A4 (-1/Access_0) A2 (-1/Access_0) A3 (-1/Access_0) Architect (-1/Access_0) Combat | -11 -10 -10 -9 -9 -9 -8 -8 -8 -8 -7 -7 -6 -6 -5 -5 -4 -4 -4 -4 -3 -3 -3 -2 -2 -2 -1 -1 -1 -------- Run | Scr Mat Min Mat Sto Gar Mat Gar Mat Gar Fac Gar Fac Gar Fac Gar Fac Was Fac Gar Res Arm Lab Res Qua Sec Acc Com Ac0 Damage Taken 51021 | . 420 148 326 292 343 838 572 76 807 413 1476 823 2284 1874 1538 1219 . 502 987 991 1786 47 2175 1673 2123 4714 12206 10368 Core 4015 | . 42 . 27 41 64 98 22 . 57 76 250 38 272 241 294 144 . 43 12 24 144 1 192 . 412 75 480 966 Absorbed by Shields 15948 | . . . . . . 247 77 . 65 98 181 . 49 . . . . 178 721 300 610 45 494 92 1613 1123 4239 5816 Reduced by Siege Mode 1966 | . . . . . . . . . . . . . . . . . . 31 71 21 130 3 194 6 41 170 1126 173 Redirected to Core 366 | . . . . . . . . . . . . . . . . . . . . . . . . . 366 . . . Core Remaining (%) 63 | 100 . 83 . . 67 . . . 67 . 53 . 63 . 46 . . . 82 . . 87 . . 37 . . 8 Volleys Fired 2232 | 14 53 15 40 20 7 78 27 3 21 29 30 31 32 35 33 9 58 21 40 60 143 30 72 72 157 216 501 385 Largest 4 | 2 2 2 2 2 2 2 2 2 2 2 2 4 4 3 2 1 3 4 4 4 4 3 4 4 4 4 4 4 Hottest 380 | 40 100 72 112 124 136 88 88 88 112 136 112 92 166 81 106 81 90 100 100 139 240 120 169 110 200 163 290 380 Shots Fired 5108 | 28 101 20 63 37 12 156 54 6 37 51 37 124 106 69 42 9 157 81 149 129 260 62 91 87 203 347 1142 1448 Gun 3753 | 28 51 6 . . . . . . . . 9 124 104 64 . . 149 80 147 88 169 48 19 4 83 191 945 1444 Cannon 664 | . 45 3 61 34 8 156 54 6 34 44 23 . . 5 37 8 6 . . . 22 13 11 22 63 . 5 4 Launcher 677 | . . 11 2 3 4 . . . 3 7 5 . 2 . 1 . . . 2 40 69 1 61 61 57 156 192 . Special 14 | . 5 . . . . . . . . . . . . . 4 1 2 1 . 1 . . . . . . . . Kinetic 2930 | 28 96 9 49 . 4 156 54 6 23 1 16 124 100 56 34 . 149 80 147 88 159 48 19 22 97 191 786 388 Thermal 158 | . 5 . . 2 2 . . . 11 43 16 . 4 13 . . 6 . . . 32 13 11 . . . . . Explosive 74 | . . 11 2 3 4 . . . 3 7 5 . 2 . 1 . . . 2 . . . . . . 31 3 . Electromagnetic 714 | . . . 12 32 2 . . . . . . . . . 3 8 . . . 40 69 1 61 65 106 125 190 . Slashing 1223 | . . . . . . . . . . . . . . . . . . . . . . . . . . . 163 1060 Robot Hit Streak 106 | 17 18 2 11 13 5 11 10 11 15 20 9 24 11 14 5 4 13 16 19 17 22 40 51 16 29 37 106 77 Robot Miss Streak 13 | 1 4 2 5 1 9 13 13 3 4 2 7 5 8 6 7 1 8 3 2 3 3 1 2 5 2 3 4 3 Penetration Max 2 | . . . . . . . . . . . . . . . . . . . . 1 2 . . . 1 2 2 1 Secondary Targets 75 | . . . . . . . . . . . . 2 3 . . . . 3 5 3 4 . . . 1 2 41 11 Max Gunslinging Chain 2 | . . . . . . . . . . . . 1 1 . . . . 1 1 1 1 . . . 1 1 2 1 Shots Hit Robots 4049 | 24 70 5 50 25 8 141 49 6 48 40 33 85 82 92 53 7 100 59 119 95 149 55 62 33 135 269 974 1181 Core Hits 2924 | 6 28 17 31 20 11 138 43 6 34 20 39 28 64 37 48 2 36 26 46 92 101 23 25 35 107 345 878 638 Critical Hits 569 | . . . . . . . . . . 9 1 1 3 6 . . 1 . 1 1 14 12 5 . 12 23 230 250 Critical Kills 100 | . . . . . . . . . . 2 1 1 . 3 . . . . 1 1 3 . . . 1 6 60 21 Critical Parts Destroyed 275 | . . . . . . . . . . 6 . . 2 3 . . 1 . . . 9 8 1 . 10 11 128 96 Melee Attacks 197 | . 12 4 4 . . 1 1 . 22 6 . 3 7 63 16 . 16 . . 1 2 . . 5 . 34 . . Kinetic 5 | . . . . . . . . . . . . . . . . . . . . . . . . 5 . . . . Impact 21 | . 12 4 4 . . 1 . . . . . . . . . . . . . . . . . . . . . . Slashing 121 | . . . . . . . . . 20 . . 2 7 57 16 . 16 . . 1 2 . . . . . . . Piercing 34 | . . . . . . . . . . . . . . . . . . . . . . . . . . 34 . . Sneak Attacks 41 | . 6 . . . . . 1 . . . . 1 1 15 1 . 16 . . . . . . . . . . . Combat Hostiles 8 | . . . . . . . . . . . . . 1 3 . . 4 . . . . . . . . . . . Follow-up Attacks 10 | . . . . . . . . . . . . . . 10 . . . . . . . . . . . . . . Damage Inflicted 165866 | 296 1633 437 1315 1024 438 2259 762 102 2231 1313 1552 1234 2057 3169 2421 248 3210 1045 2072 5542 8328 827 2176 2093 9434 28424 44978 35246 Guns 86166 | 295 434 39 . . . . . . . . 146 1197 1199 702 . . 1404 970 1703 1505 3166 238 229 6 1904 4796 30987 35246 Cannons 10896 | . 696 20 1063 520 51 2225 762 102 459 684 376 . . 117 591 248 198 . . . 44 277 131 220 2016 . 96 . Explosions 59843 | . . 345 204 504 387 . . . 424 629 1030 . 613 . 220 . . . 369 3949 5085 . 1710 1798 5514 23456 13606 . Melee 7614 | . 432 . . . . . . . 1347 . . . 222 2326 1610 . 1608 . . . . . . 69 . . . . Ramming 1347 | 1 71 33 48 . . 34 . . 1 . . 37 23 24 . . . 75 . 88 33 312 106 . . 172 289 . Kinetic 60772 | 295 1130 59 842 . 6 2225 762 102 288 7 254 1197 1167 547 554 . 1404 970 1703 1505 2952 238 229 289 2291 4796 26218 8742 Thermal 5859 | . . . . 23 22 . . . 171 677 268 . 32 272 . . 198 . . 73 648 277 131 39 832 957 1239 . Explosive 17224 | . . 345 204 504 387 . . . 424 629 1030 . 613 . 220 . . . 369 . . . . . . 10496 2003 . Electromagnetic 41771 | . . . 221 497 23 . . . . . . . . . 37 248 . . . 3876 4695 . 1710 1765 6311 12003 10385 . Impact 432 | . 432 . . . . . . . . . . . . . . . . . . . . . . . . . . . Slashing 38461 | . . . . . . . . . 1347 . . . 222 2326 1610 . 1608 . . . . . . . . . 4844 26504 Piercing . | . . . . . . . . . . . . . . . . . . . . . . . . . . . . . Highest Corruption 11 | . 1 1 . . . . . . . 1 1 . . 4 4 5 5 1 1 1 10 11 8 5 9 8 9 1 Average Corruption 2 | . 1 1 . . . . . . . 1 1 . . 3 1 3 3 1 1 1 4 10 3 2 4 4 3 1 Corruption Purged 55 | . . . . . . . . . . . . . . . 6 . 5 . . . 5 . 6 7 . . 26 . Effects 370 | . . 12 . . . . . . . 1 . . . 8 7 1 13 3 5 2 51 27 10 17 20 58 112 23 Message Errors 92 | . . 7 . . . . . . . . . . . 2 1 . 3 2 1 . 10 7 4 6 5 12 26 6 Matter Fused 43 | . . . . . . . . . . . . . . . 1 1 1 . . . 4 4 4 . 2 8 18 . Heat Flow Errors 28 | . . . . . . . . . . . . . . 2 2 . 1 . . . 4 3 1 4 4 3 4 . Energy Discharges 36 | . . 4 . . . . . . . . . . . . 1 . 1 . . . 4 4 . 2 . 3 13 4 Parts Rejected 3 | . . . . . . . . . . . . . . . . . . . . . 1 1 . . . 1 . . Data Loss (minor) 44 | . . 1 . . . . . . . . . . . 2 1 . . . . . 6 3 1 3 3 4 18 2 Data Loss (major) 3 | . . . . . . . . . . . . . . . . . . . . . . . . 1 . . 2 . Misfires 6 | . . . . . . . . . . . . . . . . . . . . . . . . 1 . 3 2 . Misdirections 2 | . . . . . . . . . . . . . . . . . . . . . . 2 . . . . . . Targeting Errors 95 | . . . . . . . . . . 1 . . . 2 1 . 6 1 3 . 16 3 . . 5 21 26 10 Weapon Failures 18 | . . . . . . . . . . . . . . . . . 1 . 1 2 6 . . . 1 3 3 1 Overload Shots . | . . . . . . . . . . . . . . . . . . . . . . . . . . . . . Overflow Damage 2653 | . 181 16 13 . 1 . . . 23 66 144 9 40 397 52 . 193 . 5 127 111 17 69 . 212 697 280 . Projectiles 242 | . 44 . . . . . . . . . 20 . . . . . . . . . . . . . 152 . 26 . Explosions 1464 | . . 16 13 . 1 . . . 10 66 124 . 36 . . . . . 5 104 102 . 60 . 60 678 189 . Melee 947 | . 137 . . . . . . . 13 . . 9 4 397 52 . 193 . . 23 9 17 9 . . 19 65 . Knockbacks 146 | . 15 . 8 . . 49 12 . 7 . 6 . . 6 21 . . 2 . 1 . 3 1 2 6 1 6 . Impact 15 | . 3 . . . . . . . . . . . . . . . . 2 . 1 . 3 1 . . 1 4 . Kinetic 122 | . 10 . 8 . . 48 11 . 7 . 6 . . 3 19 . . . . . . . . 2 6 . 2 . Secondary 9 | . 2 . . . . 1 1 . . . . . . 3 2 . . . . . . . . . . . . . Self-Inflicted Damage 2186 | . . 96 . . 68 . . . 97 . 62 . 42 . 63 . . . . 23 189 . 259 38 399 347 503 . Shots 156 | . . 3 . . 3 . . . 2 . 2 . 1 . 1 . . . . 10 10 . 12 9 27 28 48 . Rammed 75 | . 14 1 4 . . 4 . . . . . 3 4 2 . . . 7 . 2 2 18 . . . 5 9 . Targets Rammed 85 | 1 16 2 5 . . 4 . . 1 . . 3 5 3 . . . 7 . 2 2 18 1 . . 5 10 . Kicked 1 | . . . . . . . . . . . . . 1 . . . . . . . . . . . . . . . Crushed 9 | 1 2 1 1 . . . . . 1 . . . . 1 . . . . . . . . 1 . . . 1 . Highest Temperature 406 | . 132 16 207 165 69 162 132 33 108 7 155 210 166 261 226 54 196 384 199 321 303 198 189 199 185 145 320 406 Average Temperature 87 | . 49 9 51 52 28 46 58 16 37 3 67 87 54 108 53 40 95 119 105 107 95 95 62 126 74 56 51 108 Received Heat Transfer 5093 | . 216 20 102 99 63 336 129 27 279 158 156 159 269 360 18 108 . . 46 82 194 . 378 18 147 268 708 753 Effects 4 | . . . . . . . . . . . . . . . . . . 1 . . 1 . . . . . . 2 Energy Bleed 3 | . . . . . . . . . . . . . . . . . . 1 . . 1 . . . . . . 1 Interference 1 | . . . . . . . . . . . . . . . . . . . . . . . . . . . . 1 Siege Activations 111 | . . . . . . . . . . . . . . . . . . 3 4 6 8 2 2 4 9 18 32 23 Total Turns 3040 | . . . . . . . . . . . . . . . . . . 46 121 75 228 57 46 57 133 243 1616 418 Longest Duration 240 | . . . . . . . . . . . . . . . . . . 23 62 19 106 29 25 20 51 38 240 90 Robots Corrupted 195 | . . . 1 . . . . . . . . . . . . 1 . . . 16 23 . 8 12 28 56 50 . Combat Hostiles 183 | . . . 1 . . . . . . . . . . . . 1 . . . 14 22 . 7 12 27 52 47 . Parts Fried 487 | . 3 . 2 2 . . . . . . . . . . . 2 . . . 37 50 . 18 28 74 143 128 . Impact Corruptions 19 | . 8 . . . . . . . . . . 1 . . . . . . . 2 1 2 1 . . 1 3 . Robots Melted 1 | . . . . . . . . . . . . . . . . . . . . . . . . . . 1 . . Combat Hostiles . | . . . . . . . . . . . . . . . . . . . . . . . . . . . . . Parts Melted 12 | . . . . . 1 . . . 1 1 . . . . . . . . . . 2 . . . . 4 3 . Heat Transferred 6260 | . . . . 37 37 . . . 296 1184 528 . 75 522 . . 300 . . 50 660 333 111 50 400 850 827 . Parts Sabotaged 3 | . . . . . . . . . . . . . . . . . . . . . . . . . . 2 1 . Parts Stolen . | . . . . . . . . . . . . . . . . . . . . . . . . . . . . . Parts Stripped . | . . . . . . . . . . . . . . . . . . . . . . . . . . . . . Power Chain Reactions 41 | . . . . . . . . . . . . . . . . . . . . 4 8 1 . 1 4 9 14 . Missiles Intercepted . | . . . . . . . . . . . . . . . . . . . . . . . . . . . . . Alert | -11 -10 -10 -9 -9 -9 -8 -8 -8 -8 -7 -7 -6 -6 -5 -5 -4 -4 -4 -4 -3 -3 -3 -2 -2 -2 -1 -1 -1 ------- Run | Scr Mat Min Mat Sto Gar Mat Gar Mat Gar Fac Gar Fac Gar Fac Gar Fac Was Fac Gar Res Arm Lab Res Qua Sec Acc Com Ac0 Peak Influence 8746 | 30 193 22 341 559 450 472 506 294 572 514 571 550 433 414 642 391 123 215 534 1216 1383 . 483 701 1638 5301 8746 . Initial 3392 | . 19 2 1 80 365 219 196 246 137 300 219 299 120 226 217 336 108 . 60 300 638 . . 79 344 982 3392 . Average 2000 | 16 86 3 119 261 418 317 426 207 364 376 432 346 291 286 411 351 40 78 342 664 806 . 234 321 999 3287 7274 . Maximum Alert Level 5 | . . . 1 2 2 2 2 1 2 2 2 2 2 2 2 1 . 1 2 4 4 . 2 3 5 5 5 . Low Security (%) 23 | 100 100 100 75 52 . 9 13 53 9 . . 16 12 7 . . 100 99 31 . . . 38 36 . . . . Level 1 17 | . . . 24 19 36 72 9 46 46 71 41 50 75 91 34 100 . . 13 33 . . 60 10 2 . . . Level 2 18 | . . . . 28 63 17 77 . 43 28 58 33 12 . 65 . . . 54 15 35 . 1 52 23 . . . Level 3 4 | . . . . . . . . . . . . . . . . . . . . 38 45 . . . 25 6 . . Level 4 5 | . . . . . . . . . . . . . . . . . . . . 12 18 . . . 44 25 . . Level 5 10 | . . . . . . . . . . . . . . . . . . . . . . . . . 4 5 38 . High Security 19 | . . . . . . . . . . . . . . . . . . . . . . . . . . 62 61 . Max Security . | . . . . . . . . . . . . . . . . . . . . . . . . . . . . . Sterilizations 1 | . . . . . . . . . . . . . . . . . . . . . . . . . . 1 . . Squads Dispatched 126 | . 4 . 3 1 . 4 . 3 . 2 . . . 1 . . . 1 . 7 11 . 3 5 17 24 40 . Investigation 12 | . 2 . . 1 . . . 3 . . . . . . . . . . . 1 2 . . 1 . . 2 . Extermination 14 | . . . . . . . . . . 1 . . . . . . . 1 . 1 2 . 1 . 4 1 3 . Reinforcement 30 | . 2 . 3 . . 4 . . . 1 . . . 1 . . . . . 4 2 . 2 . 6 4 1 . Assault 63 | . . . . . . . . . . . . . . . . . . . . 1 5 . . 1 4 18 34 . Garrison 1 | . . . . . . . . . . . . . . . . . . . . . . . . . . 1 . . Intercept 6 | . . . . . . . . . . . . . . . . . . . . . . . . 3 3 . . . Construction Impeded 9 | . . . 1 . . . . . . . . . . . . . . . . 3 . . 1 . 2 2 . . Haulers Reinforced 5 | . . . . . . . . . . 1 . . . 1 . . . . . . . . . . 1 2 . . Stealth | -11 -10 -10 -9 -9 -9 -8 -8 -8 -8 -7 -7 -6 -6 -5 -5 -4 -4 -4 -4 -3 -3 -3 -2 -2 -2 -1 -1 -1 --------- Run | Scr Mat Min Mat Sto Gar Mat Gar Mat Gar Fac Gar Fac Gar Fac Gar Fac Was Fac Gar Res Arm Lab Res Qua Sec Acc Com Ac0 Distress Signals 51 | . 4 . . 1 . 5 . . . . . . . 1 . . . . . 5 2 . . . 5 6 22 . Communications Jammed . | . . . . . . . . . . . . . . . . . . . . . . . . . . . . . Distress Signals . | . . . . . . . . . . . . . . . . . . . . . . . . . . . . . Times Spotted 1139 | . 27 9 24 17 8 38 15 3 23 12 20 11 23 24 26 6 2 14 21 44 71 1 17 20 77 174 308 104 Peak Tracking Total 19 | . 4 2 5 4 4 5 5 1 7 5 6 5 10 5 10 4 1 5 10 7 10 1 6 4 8 13 19 7 Tactical Retreats 61 | . 3 . . . . 2 . . 4 4 2 1 1 5 2 . . . 1 3 6 . 1 1 3 4 15 3 Traps | -11 -10 -10 -9 -9 -9 -8 -8 -8 -8 -7 -7 -6 -6 -5 -5 -4 -4 -4 -4 -3 -3 -3 -2 -2 -2 -1 -1 -1 ------- Run | Scr Mat Min Mat Sto Gar Mat Gar Mat Gar Fac Gar Fac Gar Fac Gar Fac Was Fac Gar Res Arm Lab Res Qua Sec Acc Com Ac0 Traps Triggered 118 | . 3 . 1 . 3 . 3 . 7 2 4 . 6 . 7 2 . 1 . . 4 . 9 4 . 1 61 . Indirectly 68 | . . . . . . . . . . . . . . . . . . . . . 1 . 8 1 . 1 57 . Trap Hack Attempts 20 | . . 20 . . . . . . . . . . . . . . . . . . . . . . . . . . Triggered . | . . . . . . . . . . . . . . . . . . . . . . . . . . . . . Disarmed . | . . . . . . . . . . . . . . . . . . . . . . . . . . . . . Reprogrammed 3 | . . 3 . . . . . . . . . . . . . . . . . . . . . . . . . . Reused . | . . . . . . . . . . . . . . . . . . . . . . . . . . . . . Traps Extracted 1 | . . 1 . . . . . . . . . . . . . . . . . . . . . . . . . . Installed . | . . . . . . . . . . . . . . . . . . . . . . . . . . . . . Triggered 5 | . 1 . . . . . . . . . . . . . . . . . . 1 2 . . . . . 1 . Machines | -11 -10 -10 -9 -9 -9 -8 -8 -8 -8 -7 -7 -6 -6 -5 -5 -4 -4 -4 -4 -3 -3 -3 -2 -2 -2 -1 -1 -1 ---------- Run | Scr Mat Min Mat Sto Gar Mat Gar Mat Gar Fac Gar Fac Gar Fac Gar Fac Was Fac Gar Res Arm Lab Res Qua Sec Acc Com Ac0 Machines Disabled 108 | . 1 . 1 5 . . . . 1 2 1 . 1 . 2 1 . . . 3 10 4 6 18 21 14 5 12 Max in Single Turn 3 | . 1 . 1 3 . . . . 1 1 1 . 1 . 1 1 . . . 1 2 2 2 2 2 1 1 2 Garrison Access 3 | . . . . . . . . . . . . . . . . . . . . . . . 1 1 . 1 . . Garrison Relay 4 | . . . . . . . . . 1 . . . 1 . 2 . . . . . . . . . . . . . Energy Cycler 1 | . . . . . . . . . . . . . . . . . . . . . . . . . . 1 . . Machines Sabotaged . | . . . . . . . . . . . . . . . . . . . . . . . . . . . . . Garrisons Compromised . | . . . . . . . . . . . . . . . . . . . . . . . . . . . . . Overloaded Fab Kills . | . . . . . . . . . . . . . . . . . . . . . . . . . . . . . Fab Network Shutdowns . | . . . . . . . . . . . . . . . . . . . . . . . . . . . . . Hacking | -11 -10 -10 -9 -9 -9 -8 -8 -8 -8 -7 -7 -6 -6 -5 -5 -4 -4 -4 -4 -3 -3 -3 -2 -2 -2 -1 -1 -1 --------- Run | Scr Mat Min Mat Sto Gar Mat Gar Mat Gar Fac Gar Fac Gar Fac Gar Fac Was Fac Gar Res Arm Lab Res Qua Sec Acc Com Ac0 Machines Accessed 73 | . 9 3 4 4 . 7 . 6 . 2 . 7 . 5 . 1 . 2 . 1 4 . 2 5 7 2 2 . Terminals 51 | . 6 1 1 3 . 5 . 5 . 1 . 6 . 3 . 1 . 1 . 1 3 . 1 3 7 1 2 . Fabricators 1 | . . . . . . . . . . . . . . . . . . . . . 1 . . . . . . . Repair Stations 4 | . 1 . 1 . . 1 . . . . . . . . . . . . . . . . . 1 . . . . Recycling Units 3 | . 2 . . . . . . . . . . . . 1 . . . . . . . . . . . . . . Scanalyzers 3 | . . . 2 . . . . . . . . . . . . . . . . . . . . 1 . . . . Garrison Access 9 | . . . . 1 . 1 . 1 . 1 . 1 . 1 . . . 1 . . . . 1 . . 1 . . Total Hacks 219 | . 28 5 12 20 . 30 . 31 . 4 . 18 . 12 . 2 . 3 . 2 15 . 4 16 9 4 4 . Successful 124 | . 19 3 11 11 . 14 . 17 . 4 . 7 . 6 . 1 . 2 . . 7 . 3 11 6 2 . . Failed 94 | . 8 2 1 9 . 16 . 14 . . . 11 . 6 . 1 . 1 . 2 8 . 1 5 3 2 4 . Catastrophic 22 | . 1 1 . 3 . 4 . 2 . . . 2 . 4 . . . 1 . . 1 . . . . . 3 . Database Lockouts 1 | . 1 . . . . . . . . . . . . . . . . . . . . . . . . . . . Manual 89 | . 16 5 2 7 . 12 . 19 . 2 . 7 . 1 . . . . . . 12 . . 4 2 . . . Terminals 166 | . 21 3 2 18 . 24 . 29 . 2 . 15 . 8 . 2 . 1 . 2 13 . 2 9 9 2 4 . Fabricators 2 | . . . . . . . . . . . . . . . . . . . . . 2 . . . . . . . Repair Stations 11 | . 4 . 2 . . 4 . . . . . . . . . . . . . . . . . 1 . . . . Recycling Units 5 | . 3 . . . . . . . . . . . . 2 . . . . . . . . . . . . . . Scanalyzers 14 | . . . 8 . . . . . . . . . . . . . . . . . . . . 6 . . . . Garrison Access 19 | . . . . 2 . 2 . 2 . 2 . 3 . 2 . . . 2 . . . . 2 . . 2 . . Terminal Hacks 64 | . 8 3 1 6 . 8 . 11 . 2 . 5 . 2 . 1 . . . . 5 . 1 4 6 1 . . Robot Schematic 1 | . . 1 . . . . . . . . . . . . . . . . . . . . . . . . . . Robot Analysis 2 | . 1 . . 1 . . . . . . . . . . . . . . . . . . . . . . . . Prototype ID Bank 12 | . 1 . . 1 . 1 . 5 . . . . . 1 . 1 . . . . 1 . . 1 . . . . Open Door 7 | . . 2 . . . . . . . . . . . . . . . . . . . . . . 5 . . . Branch Access Points 3 | . . . 1 . . . . . . . . . . . . . . . . . . . 1 . . 1 . . Machine Index 1 | . . . . . . 1 . . . . . . . . . . . . . . . . . . . . . . Terminal Index 3 | . 1 . . . . . . . . . . 1 . . . . . . . . 1 . . . . . . . Recycling Unit Index 1 | . . . . . . . . . . . . . . . . . . . . . 1 . . . . . . . Alert Level 2 | . . . . 1 . . . . . . . . . . . . . . . . . . . . 1 . . . Unreport Threat 7 | . . . . . . 2 . 1 . 1 . 1 . . . . . . . . 1 . . 1 . . . . Locate Traps 6 | . 1 . . 1 . 2 . 1 . . . 1 . . . . . . . . . . . . . . . . Patrol Status 1 | . . . . . . 1 . . . . . . . . . . . . . . . . . . . . . . Reinforcement Status 1 | . 1 . . . . . . . . . . . . . . . . . . . . . . . . . . . Recall Investigation 2 | . . . . . . . . 1 . . . . . . . . . . . . 1 . . . . . . . Recall Reinforcements 1 | . . . . . . 1 . . . . . . . . . . . . . . . . . . . . . . Hauler Manifests 3 | . 1 . . . . . . 1 . . . 1 . . . . . . . . . . . . . . . . Registered Components 3 | . 1 . . . . . . 1 . . . . . . . . . . . . . . . 1 . . . . Registered Prototypes 1 | . . . . . . . . . . . . . . . . . . . . . . . . 1 . . . . Zone Layout 7 | . 1 . . 2 . . . 1 . 1 . 1 . 1 . . . . . . . . . . . . . . Fabricator Hacks . | . . . . . . . . . . . . . . . . . . . . . . . . . . . . . Repair Station Hacks 9 | . 4 . 2 . . 3 . . . . . . . . . . . . . . . . . . . . . . Scan Component 5 | . 2 . 1 . . 2 . . . . . . . . . . . . . . . . . . . . . . Repair 4 | . 2 . 1 . . 1 . . . . . . . . . . . . . . . . . . . . . . Recycling Unit Hacks 4 | . 2 . . . . . . . . . . . . 2 . . . . . . . . . . . . . . Process 1 | . . . . . . . . . . . . . . 1 . . . . . . . . . . . . . . Report Inventory 1 | . 1 . . . . . . . . . . . . . . . . . . . . . . . . . . . Retrieve Matter 1 | . . . . . . . . . . . . . . 1 . . . . . . . . . . . . . . Retrieve Components 1 | . 1 . . . . . . . . . . . . . . . . . . . . . . . . . . . Scanalyzer 14 | . . . 8 . . . . . . . . . . . . . . . . . . . . 6 . . . . Insert Component 10 | . . . 5 . . . . . . . . . . . . . . . . . . . . 5 . . . . Analyze 4 | . . . 3 . . . . . . . . . . . . . . . . . . . . 1 . . . . Garrison Access Hacks 15 | . . . . 2 . 1 . 2 . 2 . 1 . 2 . . . 2 . . . . 2 . . 1 . . Unlock Access 7 | . . . . 1 . 1 . 1 . 1 . 1 . 1 . . . 1 . . . . . . . . . . Seal Access 2 | . . . . . . . . . . . . . . . . . . . . . . . 1 . . 1 . . Coupler Status 6 | . . . . 1 . . . 1 . 1 . . . 1 . . . 1 . . . . 1 . . . . . Unauthorized Hacks 18 | . 5 . . 3 . 2 . 4 . . . 1 . . . . . . . . 2 . . 1 . . . . Terminals 16 | . 4 . . 3 . 2 . 4 . . . . . . . . . . . . 2 . . 1 . . . . Track 7 | . 3 . . 1 . . . 2 . . . . . . . . . . . . . . . 1 . . . . Botnet 9 | . 1 . . 2 . 2 . 2 . . . . . . . . . . . . 2 . . . . . . . Fabricators . | . . . . . . . . . . . . . . . . . . . . . . . . . . . . . Repair Stations . | . . . . . . . . . . . . . . . . . . . . . . . . . . . . . Recycling Units 1 | . 1 . . . . . . . . . . . . . . . . . . . . . . . . . . . Tunnel 1 | . 1 . . . . . . . . . . . . . . . . . . . . . . . . . . . Scanalyzers . | . . . . . . . . . . . . . . . . . . . . . . . . . . . . . Garrison Access 1 | . . . . . . . . . . . . 1 . . . . . . . . . . . . . . . . Reprogram 1 | . . . . . . . . . . . . 1 . . . . . . . . . . . . . . . . Data Cores Recovered 1 | . . . 1 . . . . . . . . . . . . . . . . . . . . . . . . . Used 1 | . . . 1 . . . . . . . . . . . . . . . . . . . . . . . . . Hacking Detections 56 | . 7 1 2 3 . 7 . 5 . 2 . 7 . 3 . 1 . 2 . 1 4 . 1 4 2 2 2 . Full Trace Events 9 | . 1 . . 1 . . . 3 . . . . . . . . . . . . 2 . . . . . 2 . Feedback Events 1 | . . . . . . . . . . . . . . . . . . . . . . . . . . . 1 . Corruption 1 | . . . . . . . . . . . . . . . . . . . . . . . . . . . 1 . Feedback Blocked . | . . . . . . . . . . . . . . . . . . . . . . . . . . . . . Robot Schematics Acquired 1 | . . 1 . . . . . . . . . . . . . . . . . . . . . . . . . . Robots Built . | . . . . . . . . . . . . . . . . . . . . . . . . . . . . . Matter . | . . . . . . . . . . . . . . . . . . . . . . . . . . . . . Time . | . . . . . . . . . . . . . . . . . . . . . . . . . . . . . Total Robot Build Rating . | . . . . . . . . . . . . . . . . . . . . . . . . . . . . . Part Schematics Acquired 4 | . . . 3 . . . . . . . . . . . . . . . . . . . . 1 . . . . Parts Built . | . . . . . . . . . . . . . . . . . . . . . . . . . . . . . Matter . | . . . . . . . . . . . . . . . . . . . . . . . . . . . . . Time . | . . . . . . . . . . . . . . . . . . . . . . . . . . . . . Total Part Build Rating . | . . . . . . . . . . . . . . . . . . . . . . . . . . . . . Parts Repaired 4 | . 2 . 1 . . 1 . . . . . . . . . . . . . . . . . . . . . . Time 106 | . 52 . 32 . . 22 . . . . . . . . . . . . . . . . . . . . . . Parts Recycled . | . . . . . . . . . . . . . . . . . . . . . . . . . . . . . Recycled Matter 365 | . . . . . . . . . . . . . . 365 . . . . . . . . . . . . . . Retrieved Matter 398 | . . . . . . . . . . . . . . 398 . . . . . . . . . . . . . . Retrieved Components 9 | . 9 . . . . . . . . . . . . . . . . . . . . . . . . . . . Parts Scanalyzed 4 | . . . 3 . . . . . . . . . . . . . . . . . . . . 1 . . . . Part Schematics Acquired 4 | . . . 3 . . . . . . . . . . . . . . . . . . . . 1 . . . . Parts Damaged . | . . . . . . . . . . . . . . . . . . . . . . . . . . . . . Bothacking | -11 -10 -10 -9 -9 -9 -8 -8 -8 -8 -7 -7 -6 -6 -5 -5 -4 -4 -4 -4 -3 -3 -3 -2 -2 -2 -1 -1 -1 ------------ Run | Scr Mat Min Mat Sto Gar Mat Gar Mat Gar Fac Gar Fac Gar Fac Gar Fac Was Fac Gar Res Arm Lab Res Qua Sec Acc Com Ac0 Used RIF Installer 7 | . . . . . 1 . 1 . 1 . 1 . 1 . 1 . . . 1 . . . . . . . . . Zone Cloak 2 | . . . . . . . 1 . 1 . . . . . . . . . . . . . . . . . . . Watcher Feeds 1 | . . . . . . . . . . . . . . . 1 . . . . . . . . . . . . . Autooverride 2 | . . . . . . . . . . . . . 1 . . . . . 1 . . . . . . . . . Autoassimilate 1 | . . . . . . . . . . . 1 . . . . . . . . . . . . . . . . . Robots Hacked 17 | . . . . . . . 1 . 2 2 . 1 . 3 3 1 2 1 . 1 . . . . . . . . Non-combat 6 | . . . . . . . . . . 1 . 1 . 2 . 1 . . . 1 . . . . . . . . Combat 11 | . . . . . . . 1 . 2 1 . . . 1 3 . 2 1 . . . . . . . . . . Autooverrided 1 | . . . . . . . . . . . . . . . 1 . . . . . . . . . . . . . Autoassimilated 1 | . . . . . . . . . . . . . . . 1 . . . . . . . . . . . . . Robot Hacks Applied 19 | . . . . . . . 1 . 2 3 . 1 . 4 3 1 2 1 . 1 . . . . . . . . parse_system 1 | . . . . . . . 1 . . . . . . . . . . . . . . . . . . . . . find_chute 2 | . . . . . . . . . . . . 1 . . . 1 . . . . . . . . . . . . drop_inventory 1 | . . . . . . . . . . . . . . 1 . . . . . . . . . . . . . . map_route 3 | . . . . . . . . . . 1 . . . 1 . . . . . 1 . . . . . . . . ignore_targets 2 | . . . . . . . . . . . . . . . . . 2 . . . . . . . . . . . find_garrison 3 | . . . . . . . . . . 1 . . . 1 . . . 1 . . . . . . . . . . overload_power 1 | . . . . . . . . . . 1 . . . . . . . . . . . . . . . . . . reboot_system 1 | . . . . . . . . . . . . . . . 1 . . . . . . . . . . . . . overwrite_iff 4 | . . . . . . . . . 2 . . . . 1 1 . . . . . . . . . . . . . formatsys_high 1 | . . . . . . . . . . . . . . . 1 . . . . . . . . . . . . . Relay Couplers Released 21 | . . . . . . . . . 4 . . . 3 . 10 . . . . . . . . 4 . . . . Machine Destruction 17 | . . . . . . . . . 4 . . . 3 . 10 . . . . . . . . . . . . . Programmers 4 | . . . . . . . . . . . . . . . . . . . . . . . . 4 . . . . Attached 11 | . . . . . . . . . 1 1 . 1 . 1 3 1 . 1 . 1 . . . 1 . . . . Robots Rewired 6 | . . . . . . . . . . . . . . . . . . . . . 6 . . . . . . . Allies Hacked 2 | . . . . . . . . . . . . . . . . . . . . . 2 . . . . . . . Hacks Repelled . | . . . . . . . . . . . . . . . . . . . . . . . . . . . . . Allies | -11 -10 -10 -9 -9 -9 -8 -8 -8 -8 -7 -7 -6 -6 -5 -5 -4 -4 -4 -4 -3 -3 -3 -2 -2 -2 -1 -1 -1 -------- Run | Scr Mat Min Mat Sto Gar Mat Gar Mat Gar Fac Gar Fac Gar Fac Gar Fac Was Fac Gar Res Arm Lab Res Qua Sec Acc Com Ac0 Total Allies 50 | . . . . . . . . . 2 . . . . 1 3 . 19 . . . 17 . . . . . . 8 Largest Group 19 | . . . . . . . . . 1 . . . . 1 2 . 19 . . . 10 . . . . . . 8 Highest-Rated Group 714 | . . . . . . . . . 29 . . . . 49 76 . 714 . . . 481 . . . . . . 110 Highest-Rated Ally 58 | . . . . . . . . . 29 . . . . 49 47 . 50 . . . 58 . . . . . . 15 Total Orders 5 | . . . . . . . 1 . . . . . 1 . . . . . . . 3 . . . . . . . ROAM 3 | . . . . . . . . . . . . . . . . . . . . . 3 . . . . . . . RETURN 2 | . . . . . . . 1 . . . . . 1 . . . . . . . . . . . . . . . Ally Attacks 255 | . . . . . . . . . 5 . . . 2 3 12 . 155 . . . 42 . . . . . . 36 Total Damage 5208 | . . . . . . . . . 73 . . . . 142 153 . 3029 . . . 1199 . . . . . . 612 Kills 14 | . . . . . . . . . 1 . . . . . 1 . 7 . . . 4 . . . . . . 1 Allies Corrupted 1 | . . . . . . . . . . . . . . . . . . . . . 1 . . . . . . . Allies Melted . | . . . . . . . . . . . . . . . . . . . . . . . . . . . . . Intel | -11 -10 -10 -9 -9 -9 -8 -8 -8 -8 -7 -7 -6 -6 -5 -5 -4 -4 -4 -4 -3 -3 -3 -2 -2 -2 -1 -1 -1 ------- Run | Scr Mat Min Mat Sto Gar Mat Gar Mat Gar Fac Gar Fac Gar Fac Gar Fac Was Fac Gar Res Arm Lab Res Qua Sec Acc Com Ac0 Robot Analysis Total 2 | . 1 . . 1 . . . . . . . . . . . . . . . . . . . . . . . . Derelict Logs Recovered 2 | . . 2 . . . . . . . . . . . . . . . . . . . . . . . . . . Drone Launches 8 | . . . . . . . 1 . . . . . 3 . 4 . . . . . . . . . . . . . Drone Recoveries 2 | . . . . . . . 1 . . . . . 1 . . . . . . . . . . . . . . . Exploration | -11 -10 -10 -9 -9 -9 -8 -8 -8 -8 -7 -7 -6 -6 -5 -5 -4 -4 -4 -4 -3 -3 -3 -2 -2 -2 -1 -1 -1 ------------- Run | Scr Mat Min Mat Sto Gar Mat Gar Mat Gar Fac Gar Fac Gar Fac Gar Fac Was Fac Gar Res Arm Lab Res Qua Sec Acc Com Ac0 Turns Passed 41299 | 226 1260 1811 956 297 210 1219 767 366 927 425 336 957 619 882 1606 202 1079 569 540 602 1889 521 964 3198 1782 2142 9245 5702 Spaces Moved 17175 | 107 545 536 387 178 101 615 324 175 341 226 137 448 208 360 526 145 507 243 189 222 753 203 259 864 699 761 3763 3353 Core 29 | 4 . . . . . . . . . . . . . . 25 . . . . . . . . . . . . . Treads 12753 | 103 430 536 238 . 45 146 324 175 341 1 98 448 63 52 63 . 300 243 189 222 753 203 259 864 699 761 2957 2240 Legs 416 | . . . . . . . . . . . . . 145 248 23 . . . . . . . . . . . . . Wheels 3751 | . 115 . 149 178 56 469 . . . 225 39 . . 60 396 145 . . . . . . . . . . 806 1113 Hover 207 | . . . . . . . . . . . . . . . . . 207 . . . . . . . . . . . Flight 19 | . . . . . . . . . . . . . . . 19 . . . . . . . . . . . . . Fastest Speed 50 | 50 80 180 120 110 110 120 180 200 200 110 120 160 150 130 110 110 138 170 180 165 165 165 177 173 160 155 120 110 Average Speed 164 | 155 157 180 169 119 155 138 199 200 217 121 162 179 172 152 256 120 162 174 180 169 165 165 177 176 179 173 164 135 Slowest Speed 2350 | 160 180 180 200 120 200 200 200 200 220 260 180 180 270 220 2350 190 180 200 180 180 165 177 177 180 180 180 200 230 Overloaded Moves . | . . . . . . . . . . . . . . . . . . . . . . . . . . . . . Propulsion Burnouts . | . . . . . . . . . . . . . . . . . . . . . . . . . . . . . Robots Hopped . | . . . . . . . . . . . . . . . . . . . . . . . . . . . . . Cave-ins Triggered 1 | . . . . . . . . . . . . . . . . . . . . . . . . . . . 1 . Teleports 2 | . . . . . . . . . . . . . . . . . . . . . . . . . . . 1 1 Exploration Rate (%) 44 | 5 81 99 41 44 31 56 58 19 61 9 40 15 34 8 61 7 95 11 34 8 52 79 13 84 48 31 59 98 Regions Visited 28 Branch Regions 8 Pre-discovered Areas 1 | . 1 . . . . . . . . . . . . . . . . . . . . . . . . . . . Known Exits Taken 11 | . . . 1 1 . 1 . 1 . 1 . 1 . 1 . . . 1 . 1 . . 1 . . 1 . . Unknown Exits Taken 8 | 1 1 1 . . . . . . . . . . . . . . . . . . 1 1 . 1 1 . 1 . Scrap Searched 3 | . . 3 . . . . . . . . . . . . . . . . . . . . . . . . . . Spaces Dug 273 | . 9 80 4 . . 1 . . 22 . . 2 10 5 . . . . . 1 11 . 2 . 13 43 22 48 Terrain Destroyed 1652 | . 9 146 22 29 6 1 . . 22 19 25 2 14 5 14 . . . 31 42 34 12 8 18 24 306 274 589 Melee 23 | . 4 3 4 . . 1 . . 1 . . 2 . 5 . . . . . 1 . . . . . 2 . . Projectile 781 | . 5 2 . . . . . . . . . . 2 . . . . . . . 28 . 7 7 9 23 109 589 AOE 847 | . . 141 18 29 6 . . . 21 19 25 . 12 . 14 . . . 31 41 6 12 . 11 15 281 165 . Terrain Rammed 1 | . . . . . . . . . . . . . . . . . . . . . . . 1 . . . . . Walls Destroyed 1 | . . . . . . . . . . . . . . . . . . . . . . . 1 . . . . . Machines Disabled . | . . . . . . . . . . . . . . . . . . . . . . . . . . . . . Actions | -11 -10 -10 -9 -9 -9 -8 -8 -8 -8 -7 -7 -6 -6 -5 -5 -4 -4 -4 -4 -3 -3 -3 -2 -2 -2 -1 -1 -1 --------- Run | Scr Mat Min Mat Sto Gar Mat Gar Mat Gar Fac Gar Fac Gar Fac Gar Fac Was Fac Gar Res Arm Lab Res Qua Sec Acc Com Ac0 Total 27224 | 136 791 1354 616 225 138 823 388 187 448 318 209 542 383 557 713 164 635 341 309 350 1247 328 733 2503 1032 1370 6164 4220 Wait 5442 | . 79 732 131 6 3 79 20 . 20 16 9 5 66 46 23 2 2 35 69 20 121 36 381 1397 82 247 1538 277 Move 17151 | 106 544 535 386 178 100 614 323 175 340 226 136 447 207 359 525 145 506 243 188 222 752 202 258 863 698 760 3761 3352 Hop . | . . . . . . . . . . . . . . . . . . . . . . . . . . . . . Pick Up 368 | 6 25 19 15 5 1 15 . 3 10 10 4 10 6 12 28 3 12 7 . 7 30 5 1 31 20 10 33 40 Fast Attach 315 | 7 5 4 3 4 . 4 2 1 . 2 . 8 15 18 10 2 6 5 . 4 27 11 2 27 13 18 78 39 Attach 228 | . 5 2 4 2 2 6 2 . 4 6 11 6 5 5 12 2 9 . . 6 24 4 3 21 12 14 25 36 Detach 92 | . 1 . . 1 . 1 1 . 1 1 1 1 2 . 3 . 3 . . . 18 5 3 14 2 7 19 8 Swap 407 | . 37 7 11 2 7 6 5 1 13 8 4 11 8 8 13 1 5 7 8 21 28 3 5 17 25 36 80 30 Drop 510 | 2 14 14 17 7 . 15 3 4 2 4 . 17 9 22 18 . 18 14 4 8 51 14 4 52 23 23 98 53 Fire 2232 | 14 53 15 40 20 7 78 27 3 21 29 30 31 32 35 33 9 58 21 40 60 143 30 72 72 157 216 501 385 Melee 183 | . 12 4 4 . . 1 1 . 22 6 . 3 7 49 16 . 16 . . 1 2 . . 5 . 34 . . Ram 1 | . . . . . . . . . . . . . . . . . . . . . . . 1 . . . . . Kick 1 | . . . . . . . . . . . . . 1 . . . . . . . . . . . . . . . Crush 83 | 1 16 2 5 . . 4 . . 1 . . 3 4 3 . . . 7 . 1 2 18 1 . . 5 10 . Escape Stasis 144 | . . . . . 18 . 4 . 14 10 14 . 21 . 32 . . 2 . . 2 . 2 4 . . 21 . Rewire 47 | . . . . . . . . . . . . . . . . . . . . . 47 . . . . . . . Trap 20 | . . 20 . . . . . . . . . . . . . . . . . . . . . . . . . . Miscellaneous . | . . . . . . . . . . . . . . . . . . . . . . . . . . . . . Route ------- -11/Scrapyard -10/Materials (discovered 2 exits: *Mat / *Min) -10/Mines (discovered 2 exits: *Mat x2) -9/Materials (discovered 5 exits: *Mat x2 / Min / *Sto x2) -9/Storage (discovered 2 exits: [Rec] / Gar) -9/Garrison -8/Materials (discovered 2 exits: *Fac / Gar) -8/Garrison (discovered 3 exits: *Mat x3) -8/Materials -8/Garrison (discovered 3 exits: *Fac x3) -7/Factory -7/Garrison -6/Factory -6/Garrison -5/Factory -5/Garrison (discovered 2 exits: *Fac x2) -4/Factory -4/Waste -4/Factory -4/Garrison -3/Research -3/Armory -3/Lab -2/Research (discovered 3 exits: *Acc / *Qua x2) -2/Quarantine -2/Section 7 -1/Access -1/Command (discovered 3 exits: [*Sur x2] / *Ac0) -1/Access_0 To Fleet Rendezvous History --------- Turn | Location | Event 18 | -11/Scrapyard | Discovered new exit (range 16) 227 | -11/Scrapyard | Entered Materials 357 | -10/Materials | Build established: Mutant 488 | -10/Materials | Discovered new exit (range 9) 692 | -10/Materials | Discovered new exit (range 4) 693 | -10/Materials | Central database locked down 1374 | -10/Materials | Repaired Lgt. Treads 1401 | -10/Materials | Repaired Lgt. Treads 1444 | -10/Materials | Build established: Hauler-Mutant 1487 | -10/Materials | Entered Mines 1488 | -10/Mines | Assembled infested the area 2155 | -10/Mines | Received a Rocket Launcher from a helpful Derelict 2484 | -10/Mines | Discovered new exit (range 14) 2535 | -10/Mines | Learned 2 Materials zone layouts 2574 | -10/Mines | Discovered new exit (range 9) 2728 | -10/Mines | Met a Derelict who couldn't figure out how to use a Trap Extractor 2749 | -10/Mines | Learned Materials security intel 2790 | -10/Mines | Found the Drone Emporium 2798 | -10/Mines | Found Prototype Device 3298 | -10/Mines | Entered Materials 3298 | -9/Materials | Evolved 2 slots: Utility x2 3299 | -9/Materials | Identified exit to Materials 3369 | -9/Materials | Repaired Mni. Grenade Launcher 4064 | -9/Materials | Identified exit to Mines 4064 | -9/Materials | Identified exit to Storage 4076 | -9/Materials | Discovered exit to Materials (range 16) 4085 | -9/Materials | Identified Bomb Drone Bay 4254 | -9/Materials | Entered Storage 4374 | -9/Storage | Build established: Hacker-Mutant 4482 | -9/Storage | Discovered new exit (range 12) 4551 | -9/Storage | Identified exit to Garrison 4551 | -9/Storage | Entered Garrison 4557 | -9/Garrison | Installed Relay Interface Framework 4620 | -9/Garrison | Triggered checkpoint 4622 | -9/Garrison | Triggered checkpoint 4746 | -9/Garrison | Discovered exit to Materials (range 10) 4761 | -9/Garrison | Entered Materials 4761 | -8/Materials | Evolved 2 slots: Utility x2 5077 | -8/Materials | Repaired Broken Arm. Wheel 5669 | -8/Materials | Discovered new exit (range 3) 5963 | -8/Materials | Identified exit to Garrison 5980 | -8/Materials | Entered Garrison 6064 | -8/Garrison | Triggered checkpoint 6077 | -8/Garrison | Triggered checkpoint 6175 | -8/Garrison | Destroyed 11 combat bots 6250 | -8/Garrison | Discovered new exit (range 14) 6516 | -8/Garrison | Discovered new exit (range 10) 6640 | -8/Garrison | Triggered checkpoint 6694 | -8/Garrison | Discovered new exit (range 10) 6722 | -8/Garrison | Expanded RIF knowledge: Zone Cloak 6747 | -8/Garrison | Entered Materials 7113 | -8/Materials | Identified exit to Garrison 7113 | -8/Materials | Entered Garrison 7154 | -8/Garrison | Triggered checkpoint 7199 | -8/Garrison | Garrison Relay disabled 7288 | -8/Garrison | Triggered checkpoint 7294 | -8/Garrison | Triggered checkpoint 7333 | -8/Garrison | Lost 3 parts (1u2w) 7452 | -8/Garrison | Discovered new exit (range 11) 7499 | -8/Garrison | Build established: Bothacker-Mutant 7736 | -8/Garrison | Discovered new exit (range 15) 7894 | -8/Garrison | Triggered checkpoint 7938 | -8/Garrison | Destroyed 7 combat bots 8000 | -8/Garrison | Discovered new exit (range 10) 8031 | -8/Garrison | Expanded RIF knowledge: Zone Cloak 8040 | -8/Garrison | Entered Factory 8040 | -7/Factory | Evolved 2 slots: Propulsion x2 8465 | -7/Factory | Identified exit to Garrison 8465 | -7/Factory | Entered Garrison 8471 | -7/Garrison | Expanded RIF knowledge: Autoassimilate 8525 | -7/Garrison | Build established: Hauler-Mutant 8624 | -7/Garrison | Lost 10 parts (1p5n2u2w) 8628 | -7/Garrison | Destroyed 13 combat bots 8646 | -7/Garrison | Triggered checkpoint 8769 | -7/Garrison | Discovered new exit (range 15) 8801 | -7/Garrison | Entered Factory 8801 | -6/Factory | Evolved 2 slots: Weapon x2 9089 | -6/Factory | Build established: Scavenger-Tank 9690 | -6/Factory | Identified exit to Garrison 9758 | -6/Factory | Entered Garrison 9767 | -6/Garrison | Expanded RIF knowledge: Autooverride 9784 | -6/Garrison | Triggered checkpoint 9810 | -6/Garrison | Triggered checkpoint 9898 | -6/Garrison | Triggered checkpoint 9937 | -6/Garrison | Triggered checkpoint 9985 | -6/Garrison | Lost 8 parts (1p3n1u3w) 10250 | -6/Garrison | Triggered checkpoint 10297 | -6/Garrison | Build established: Scavenger-Gunner 10299 | -6/Garrison | Garrison Relay disabled 10364 | -6/Garrison | Discovered new exit (range 10) 10377 | -6/Garrison | Entered Factory 10377 | -5/Factory | Evolved 2 slots: Power x1, Utility x1 10602 | -5/Factory | Build established: Bothacker-Gunner 10962 | -5/Factory | Lost 4 parts (4n) 10971 | -5/Factory | Found Launcher Loader 11253 | -5/Factory | Identified exit to Garrison 11259 | -5/Factory | Entered Garrison 11451 | -5/Garrison | Build established: Scavenger-Mutant 11610 | -5/Garrison | Triggered checkpoint 11650 | -5/Garrison | Garrison Relay disabled 11833 | -5/Garrison | Lost 8 parts (2p2n2u2w) 11834 | -5/Garrison | Destroyed 8 combat bots 11954 | -5/Garrison | Core integrity fell below 50% 11987 | -5/Garrison | Build established: Botlord-Mutant 12176 | -5/Garrison | Triggered checkpoint 12299 | -5/Garrison | Discovered new exit (range 14) 12633 | -5/Garrison | Build established: Bothacker-Mutant 12710 | -5/Garrison | Discovered new exit (range 8) 12725 | -5/Garrison | Expanded RIF knowledge: Patrol Navigation 12782 | -5/Garrison | Triggered checkpoint 12797 | -5/Garrison | Garrison Relay disabled 12865 | -5/Garrison | Entered Factory 12865 | -4/Factory | Evolved 2 slots: Utility x2 13044 | -4/Factory | Spotted B-86 Titan 13061 | -4/Factory | Found Prototype Launcher 13061 | -4/Factory | Identified Com. Tesla Bomb Launcher 13066 | -4/Factory | Found Com. Tesla Bomb Launcher 13067 | -4/Factory | Sucked down chute 13067 | -4/Factory | Entered Waste 13088 | -4/Waste | Spotted C-40 Crusher 13095 | -4/Waste | Lost 8 parts (1p3n1u3w) 13117 | -4/Waste | Build established: Botlord-Mutant 13164 | -4/Waste | Spotted C-40 Crusher 13196 | -4/Waste | Warlord forces began an assault 13340 | -4/Waste | Spotted C-40 Crusher 13340 | -4/Waste | Allies destroyed C-40 Crusher 13346 | -4/Waste | Spotted C-40 Crusher 13350 | -4/Waste | Allies destroyed C-40 Crusher 13370 | -4/Waste | Allies destroyed C-40 Crusher 13384 | -4/Waste | Spotted C-40 Crusher 13388 | -4/Waste | Allies destroyed C-40 Crusher 13675 | -4/Waste | Build established: Botlord-Gunner 13759 | -4/Waste | Discovered new exit (range 13) 13914 | -4/Waste | Found Damper Plating 13968 | -4/Waste | Found Damper Plating 13985 | -4/Waste | Found Damper Plating 14146 | -4/Waste | Entered Factory 14196 | -4/Factory | Build established: Botlord-Tank 14624 | -4/Factory | Build established: Bothacker-Tank 14715 | -4/Factory | Identified exit to Garrison 14715 | -4/Factory | Entered Garrison 14814 | -4/Garrison | Triggered checkpoint 15020 | -4/Garrison | Destroyed 11 combat bots 15148 | -4/Garrison | Triggered checkpoint 15210 | -4/Garrison | Discovered new exit (range 10) 15244 | -4/Garrison | Expanded RIF knowledge: Autooverride 15255 | -4/Garrison | Entered Research 15255 | -3/Research | Evolved 2 slots: Utility x2 15286 | -3/Research | Discovered new exit (range 79) 15579 | -3/Research | Destroyed 7 combat bots 15755 | -3/Research | First assault squad dispatched 15805 | -3/Research | Identified exit to Armory 15819 | -3/Research | Destroyed 12 combat bots 15857 | -3/Research | Entered Armory 16107 | -3/Armory | First assault squad dispatched 16396 | -3/Armory | Destroyed 7 combat bots 16504 | -3/Armory | Assisted by bots powering up and referring to "LRC-V3" 16694 | -3/Armory | Spotted B-86 Titan 16724 | -3/Armory | Found Prototype Processor 16724 | -3/Armory | Identified Spectral Analyzer 16728 | -3/Armory | Found Prototype Device 16728 | -3/Armory | Identified Exp. Shield Generator 16755 | -3/Armory | Found Prototype Launcher 16755 | -3/Armory | Identified Hellfire Missile Launcher 16979 | -3/Armory | System corruption reached 10% 17000 | -3/Armory | Destroyed 10 combat bots 17169 | -3/Armory | Destroyed 7 combat bots 17473 | -3/Armory | Allied Derelicts emerged from ambush trap array 17684 | -3/Armory | Discovered new exit (range 3) 17746 | -3/Armory | Entered Lab 17749 | -3/Lab | Discovered new exit (range 9) 17787 | -3/Lab | Detected for breach 17793 | -3/Lab | Confronted by A5 17827 | -3/Lab | Gained access to the hidden lab's interior 17939 | -3/Lab | Destroyed A5 17952 | -3/Lab | Found Prototype Protection 17952 | -3/Lab | Identified Med. Regenerative Plating 17992 | -3/Lab | Found Alien Artifact 17992 | -3/Lab | Identified Integrated Dissipator 17992 | -3/Lab | Installed Integrated Dissipator, increased core heat dissipation (+20) 18025 | -3/Lab | Found Prototype Protection 18025 | -3/Lab | Identified Hvy. Regenerative Plating 18031 | -3/Lab | Found Prototype Energy Gun 18031 | -3/Lab | Identified Tachyon Dispersion Ray 18067 | -3/Lab | Found Prototype Energy Gun 18067 | -3/Lab | Identified Hyp. EM Gauss Rifle 18181 | -3/Lab | Found Prototype Hackware 18214 | -3/Lab | Found Alien Artifact 18217 | -3/Lab | Build established: Hauler-Mutant 18229 | -3/Lab | Found Alien Artifact 18241 | -3/Lab | Found Alien Artifact 18267 | -3/Lab | Entered Research 18267 | -2/Research | Evolved 2 slots: Utility x2 18288 | -2/Research | Spotted B-90 Cyclops 18344 | -2/Research | Destroyed B-90 Cyclops 18426 | -2/Research | Identified Deep Network Scanner 18427 | -2/Research | Identified exit to Quarantine 18480 | -2/Research | Spotted B-90 Cyclops 18507 | -2/Research | Destroyed B-90 Cyclops 18566 | -2/Research | Discovered new exit (range 8) 19231 | -2/Research | Entered Quarantine 19233 | -2/Quarantine | Cryocooling Duct disabled 19233 | -2/Quarantine | Cryocooling Duct disabled 19248 | -2/Quarantine | Ambient heat levels rising (+40) 19248 | -2/Quarantine | Non-combat units ordered to evacuate 19248 | -2/Quarantine | Combat units ordered to evacuate 19348 | -2/Quarantine | Quarantine Guard activated 19935 | -2/Quarantine | Spotted Quarantine Guard 19940 | -2/Quarantine | Destroyed Quarantine Guard 20035 | -2/Quarantine | Identified Transdimensional Reconstructor 20035 | -2/Quarantine | Identified Core Expander 20035 | -2/Quarantine | Identified Core Reset Matrix 20035 | -2/Quarantine | Installed Core Expander, added new Propulsion slot 20103 | -2/Quarantine | Found Alien Energy Cannon 20153 | -2/Quarantine | Spotted Quarantine Guard 20162 | -2/Quarantine | Destroyed Quarantine Guard 20176 | -2/Quarantine | Spotted Quarantine Guard 20181 | -2/Quarantine | Destroyed Quarantine Guard 20214 | -2/Quarantine | Discovered new exit (range 15) 20214 | -2/Quarantine | Spotted Quarantine Guard 20221 | -2/Quarantine | Destroyed Quarantine Guard 20302 | -2/Quarantine | Spotted Quarantine Guard 20308 | -2/Quarantine | Destroyed Quarantine Guard 20332 | -2/Quarantine | Found Alien Artifact 20332 | -2/Quarantine | Identified Stasis Generator 20346 | -2/Quarantine | Spotted Quarantine Guard 20353 | -2/Quarantine | Destroyed Quarantine Guard 20389 | -2/Quarantine | Found Alien Artifact 20389 | -2/Quarantine | Identified Phase Redirector 20483 | -2/Quarantine | Build established: Scavenger-Mutant 20581 | -2/Quarantine | Spotted Quarantine Guard 20586 | -2/Quarantine | Destroyed Quarantine Guard 20595 | -2/Quarantine | Spotted Quarantine Guard 20601 | -2/Quarantine | Destroyed Quarantine Guard 20716 | -2/Quarantine | Spotted Quarantine Guard 20728 | -2/Quarantine | Destroyed Quarantine Guard 20787 | -2/Quarantine | Spotted Quarantine Guard 20816 | -2/Quarantine | Destroyed Quarantine Guard 20900 | -2/Quarantine | Found Alien Impact Weapon 20981 | -2/Quarantine | Found Prototype Device 20982 | -2/Quarantine | Identified Exp. Transmission Jammer 21019 | -2/Quarantine | Found Alien Artifact 21797 | -2/Quarantine | Found Alien Artifact 21813 | -2/Quarantine | Intercept squad dispatched 21826 | -2/Quarantine | Spotted Tracker 21827 | -2/Quarantine | Spotted Tracker 21830 | -2/Quarantine | Destroyed Tracker 21837 | -2/Quarantine | Destroyed Tracker 21845 | -2/Quarantine | Identified Core Stripper 21864 | -2/Quarantine | Spotted Combat Programmer 21866 | -2/Quarantine | Spotted Combat Programmer 21874 | -2/Quarantine | Destroyed Combat Programmer 21878 | -2/Quarantine | Destroyed Combat Programmer 21887 | -2/Quarantine | Found Prototype Processor 21887 | -2/Quarantine | Identified Exp. Targeting Computer 21911 | -2/Quarantine | Found Prototype Special Weapon 21911 | -2/Quarantine | Identified Exp. Remote Datajack 21914 | -2/Quarantine | Found Prototype Processor 21914 | -2/Quarantine | Identified Exp. Target Analyzer 21925 | -2/Quarantine | Found Exp. Target Analyzer 21942 | -2/Quarantine | Found Prototype Device 21942 | -2/Quarantine | Identified Exp. Focal Shield 21965 | -2/Quarantine | Found Prototype Device 21965 | -2/Quarantine | Identified Exp. Phase Shifter 21972 | -2/Quarantine | Found Exp. Targeting Computer 21973 | -2/Quarantine | Identified Subatomic Replicator 21973 | -2/Quarantine | Identified Terrabomb 21973 | -2/Quarantine | Identified Core Cannon 21973 | -2/Quarantine | Used Core Reset Matrix 21977 | -2/Quarantine | Detected hypermatrix surge 21977 | -2/Quarantine | Sensed 2 artifacts in vicinity 21999 | -2/Quarantine | Found Exp. Focal Shield 22002 | -2/Quarantine | Found Prototype Energy Cannon 22146 | -2/Quarantine | Cryocooling Duct disabled 22146 | -2/Quarantine | Cryocooling Duct disabled 22161 | -2/Quarantine | Ambient heat levels rising (+40) 22203 | -2/Quarantine | Spotted Fortress 22213 | -2/Quarantine | Destroyed Fortress 22238 | -2/Quarantine | Found Prototype Device 22238 | -2/Quarantine | Identified Thermal Barrier 22243 | -2/Quarantine | Found Prototype Reactor 22243 | -2/Quarantine | Identified Vortex Chain Reactor 22247 | -2/Quarantine | Found Vortex Chain Reactor 22260 | -2/Quarantine | Found Prototype Device 22260 | -2/Quarantine | Identified Exp. Force Field 22268 | -2/Quarantine | Found Prototype Device 22268 | -2/Quarantine | Identified EM Dispersion Field 22392 | -2/Quarantine | Discovered new exit (range 6) 22392 | -2/Quarantine | Spotted Quarantine Guard 22401 | -2/Quarantine | Destroyed Quarantine Guard 22413 | -2/Quarantine | Identified EMDS 22429 | -2/Quarantine | Entered Section 7 22430 | -2/Section 7 | Sensed 23 artifacts in vicinity 22519 | -2/Section 7 | Build established: Hauler-Mutant 22562 | -2/Section 7 | Found Integrated Dissipator 22562 | -2/Section 7 | Installed Integrated Dissipator, increased core heat dissipation (+20) 22612 | -2/Section 7 | Found Integrated Reactor 22612 | -2/Section 7 | Installed Integrated Reactor, increased core energy generation (+10) 22676 | -2/Section 7 | Spotted S7 Guard 22685 | -2/Section 7 | Destroyed S7 Guard 22701 | -2/Section 7 | Used Subatomic Replicator to replicate Integrated Singularity Reactor 22702 | -2/Section 7 | Found Integrated Singularity Reactor 22702 | -2/Section 7 | Installed Integrated Singularity Reactor, increased core energy generation (+20) 22706 | -2/Section 7 | Installed Integrated Singularity Reactor, increased core energy generation (+20) 22868 | -2/Section 7 | Discovered new exit (range 8) 22877 | -2/Section 7 | Build established: Alien-Mutant 22924 | -2/Section 7 | Found Integrated Dissipator 22924 | -2/Section 7 | Installed Integrated Dissipator, increased core heat dissipation (+20) 23023 | -2/Section 7 | Spotted Executioner 23023 | -2/Section 7 | Spotted Executioner 23032 | -2/Section 7 | Destroyed Executioner 23033 | -2/Section 7 | Destroyed Executioner 23115 | -2/Section 7 | Found Hpw. Transdimensional Reconstructor 23118 | -2/Section 7 | Found Transdimensional Reconstructor 23154 | -2/Section 7 | Found Matter Drive 23205 | -2/Section 7 | First assault squad dispatched 23316 | -2/Section 7 | Found Sigix Quantum Sheargun 23321 | -2/Section 7 | Found Sigix Quantum Sheargun 23324 | -2/Section 7 | Found Sigix Quantum Sheargun 23360 | -2/Section 7 | Destroyed 9 combat bots 23487 | -2/Section 7 | Spotted B-99 Colossus 23602 | -2/Section 7 | Found LRC Matter Compressor 23602 | -2/Section 7 | Installed LRC Matter Compressor, increased matter storage capacity (+125) 23605 | -2/Section 7 | Found LRC Matter Compressor 23605 | -2/Section 7 | Installed LRC Matter Compressor, increased matter storage capacity (+125) 23718 | -2/Section 7 | Found Integrity Redistributor 23719 | -2/Section 7 | Used Integrity Redistributor, redistributed integrity from core (-308) 23720 | -2/Section 7 | Core integrity fell below 50% 23723 | -2/Section 7 | Found Integrity Redistributor 23726 | -2/Section 7 | Found Integrity Redistributor 23944 | -2/Section 7 | Intercept squad dispatched 23956 | -2/Section 7 | Spotted Tracker 23957 | -2/Section 7 | Spotted Tracker 23978 | -2/Section 7 | Destroyed Tracker 23979 | -2/Section 7 | Destroyed Tracker 23995 | -2/Section 7 | Spotted Combat Programmer 23997 | -2/Section 7 | Spotted Combat Programmer 24006 | -2/Section 7 | Destroyed Combat Programmer 24016 | -2/Section 7 | Destroyed Combat Programmer 24103 | -2/Section 7 | Found Prototype Processor 24211 | -2/Section 7 | Entered Access 24211 | -1/Access | Evolved 2 slots: Utility x2 24389 | -1/Access | Destroyed 10 combat bots 24461 | -1/Access | First assault squad dispatched 24842 | -1/Access | Identified exit to Command 24929 | -1/Access | Destroyed 12 combat bots 25001 | -1/Access | Energy Cycler disabled 25023 | -1/Access | High security lockdown imminent 25045 | -1/Access | Destroyed 15 combat bots 25103 | -1/Access | High security lockdown engaged 25112 | -1/Access | Destroyed 10 combat bots 25155 | -1/Access | Garrison activated, responded to threat 25189 | -1/Access | Destroyed 24 combat bots 25201 | -1/Access | Spotted Executioner 25205 | -1/Access | Destroyed Executioner 25252 | -1/Access | Spotted B-99 Colossus 25336 | -1/Access | Identified Exp. Core Analyzer 25351 | -1/Access | Destroyed Investigator 25391 | -1/Access | Spotted Striker 25396 | -1/Access | Destroyed Striker 25418 | -1/Access | Destroyed 20 combat bots 25424 | -1/Access | Spotted Striker 25425 | -1/Access | Spotted Striker 25430 | -1/Access | Destroyed Striker 25431 | -1/Access | Destroyed Striker 25464 | -1/Access | Destroyed 12 combat bots 25490 | -1/Access | Sterilization system engaged 25511 | -1/Access | Spotted Striker 25517 | -1/Access | Destroyed Striker 25539 | -1/Access | Destroyed 16 combat bots 25790 | -1/Access | Ambient heat levels rising (+10) 25875 | -1/Access | Spotted B-99 Colossus 25875 | -1/Access | Spotted B-99 Colossus 25923 | -1/Access | Destroyed B-99 Colossus 25940 | -1/Access | Ambient heat levels rising (+10) 26036 | -1/Access | Destroyed B-99 Colossus 26073 | -1/Access | Found Unknown Protection 26073 | -1/Access | Identified Hvy. Reflective Plating 26080 | -1/Access | Found Prototype Ballistic Gun 26080 | -1/Access | Identified Multirail 26090 | -1/Access | Ambient heat levels rising (+10) 26145 | -1/Access | Build established: Alien-Bomber 26240 | -1/Access | Ambient heat levels rising (+10) 26353 | -1/Access | Entered Command 26631 | -1/Command | First assault squad dispatched 26807 | -1/Command | Destroyed 8 combat bots 26994 | -1/Command | Used Integrity Redistributor, redistributed integrity from core (-178) 27006 | -1/Command | Destroyed 14 combat bots 27322 | -1/Command | Destroyed 11 combat bots 27536 | -1/Command | High security lockdown imminent 27573 | -1/Command | Destroyed 9 combat bots 27616 | -1/Command | High security lockdown engaged 27789 | -1/Command | Spotted Executioner 27789 | -1/Command | Spotted Executioner 27789 | -1/Command | Spotted Executioner 27789 | -1/Command | Spotted Executioner 27789 | -1/Command | Spotted Striker 27795 | -1/Command | Destroyed Executioner 27798 | -1/Command | Destroyed Executioner 27798 | -1/Command | Destroyed Executioner 27811 | -1/Command | Destroyed Striker 27817 | -1/Command | Spotted Executioner 27831 | -1/Command | Destroyed Executioner 27838 | -1/Command | Destroyed Executioner 27869 | -1/Command | Spotted Investigator 27875 | -1/Command | Spotted Striker 27905 | -1/Command | Destroyed Striker 27926 | -1/Command | Destroyed 29 combat bots 27956 | -1/Command | Scanned by Researcher 27965 | -1/Command | Destroyed Investigator 28006 | -1/Command | Crushed by falling debris 28017 | -1/Command | Spotted Striker 28017 | -1/Command | Spotted Executioner 28025 | -1/Command | Destroyed Striker 28029 | -1/Command | Spotted Striker 28054 | -1/Command | Destroyed Striker 28067 | -1/Command | Destroyed Executioner 28142 | -1/Command | Destroyed 30 combat bots 28165 | -1/Command | Destroyed Executioner 28176 | -1/Command | Spotted Executioner 28176 | -1/Command | Spotted Striker 28178 | -1/Command | Destroyed Executioner 28183 | -1/Command | Destroyed Striker 28186 | -1/Command | Spotted Striker 28187 | -1/Command | Destroyed Striker 28187 | -1/Command | Spotted Executioner 28192 | -1/Command | Destroyed Executioner 28228 | -1/Command | Destroyed 19 combat bots 28236 | -1/Command | Spotted Striker 28236 | -1/Command | Spotted Executioner 28238 | -1/Command | Spotted Striker 28238 | -1/Command | Destroyed Striker 28238 | -1/Command | Spotted Striker 28241 | -1/Command | Destroyed Executioner 28241 | -1/Command | Destroyed Striker 28241 | -1/Command | Destroyed Striker 28282 | -1/Command | Destroyed 12 combat bots 28376 | -1/Command | Destroyed 10 combat bots 28466 | -1/Command | Spotted Striker 28469 | -1/Command | Destroyed Striker 28470 | -1/Command | Spotted Investigator 28478 | -1/Command | Destroyed Investigator 28522 | -1/Command | Destroyed 13 combat bots 28666 | -1/Command | Build established: Scavenger-Mutant 29079 | -1/Command | Found Prototype Device 29079 | -1/Command | Identified Adv. Kinecellerator 29117 | -1/Command | Found Prototype Launcher 29574 | -1/Command | Build established: Alien-Gunner 30043 | -1/Command | Build established: Scavenger-Gunner 30305 | -1/Command | Spotted M Guard 30305 | -1/Command | Spotted Combat Programmer 30306 | -1/Command | Spotted M Guard 30306 | -1/Command | Spotted Combat Programmer 30333 | -1/Command | Destroyed M Guard 30336 | -1/Command | Destroyed M Guard 30355 | -1/Command | Destroyed Combat Programmer 30368 | -1/Command | Destroyed Combat Programmer 30368 | -1/Command | All MAIN.C guards destroyed 30426 | -1/Command | Found Prototype Device 30426 | -1/Command | Identified AEGIS Remote Shield 30435 | -1/Command | Found Prototype Reactor 30435 | -1/Command | Identified Zero-point Reactor 30438 | -1/Command | Found Zero-point Reactor 30483 | -1/Command | Found Zero-point Reactor 30650 | -1/Command | Found EMDS 30884 | -1/Command | Found Hvy. Regenerative Plating 30921 | -1/Command | Build established: Scavenger-Mutant 31590 | -1/Command | Spotted Alpha 7 31590 | -1/Command | Spotted Striker 31590 | -1/Command | Spotted Executioner 31590 | -1/Command | Spotted Executioner 31601 | -1/Command | Spotted Striker 31603 | -1/Command | Spotted Alpha 7 31607 | -1/Command | Spotted Executioner 31608 | -1/Command | Destroyed Striker 31612 | -1/Command | Destroyed Striker 31619 | -1/Command | Destroyed Executioner 31626 | -1/Command | Destroyed Executioner 31657 | -1/Command | Destroyed Alpha 7 31689 | -1/Command | Spotted Executioner 31695 | -1/Command | Found Exp. Core Analyzer 31700 | -1/Command | Found Multirail 31703 | -1/Command | Found Exp. Targeting Computer 31735 | -1/Command | Spotted B-99 Colossus 31909 | -1/Command | Spotted B-99 Colossus 31938 | -1/Command | Destroyed Executioner 32188 | -1/Command | Destroyed B-99 Colossus 32262 | -1/Command | Destroyed B-99 Colossus 32283 | -1/Command | Discovered new exit (range 7) 32287 | -1/Command | Found Multirail 32304 | -1/Command | Found Multirail 32430 | -1/Command | Found Multirail 32461 | -1/Command | Found Multirail 32565 | -1/Command | Build established: Scavenger-Gunner 33163 | -1/Command | 0b10 Conduit disabled 33165 | -1/Command | Met MAIN.C 33191 | -1/Command | Destroyed MAIN.C Shell 33194 | -1/Command | MAIN.C activated Command garrisons 33222 | -1/Command | Destroyed MAIN.C 33314 | -1/Command | Destroyed B-99 Colossus 33413 | -1/Command | Found Prototype Protection 33413 | -1/Command | Identified Exp. Powered Armor 34426 | -1/Command | Found Prototype Ballistic Gun 34426 | -1/Command | Identified Hyp. Multirail 34433 | -1/Command | Found Prototype Reactor 34433 | -1/Command | Identified Vortex Chain Reactor 34439 | -1/Command | Found Vortex Chain Reactor 34444 | -1/Command | Found Prototype Device 34444 | -1/Command | Identified Adv. Particle Accelerator 34448 | -1/Command | Found Prototype Processor 34448 | -1/Command | Identified Spectral Analyzer 34574 | -1/Command | Used Integrity Redistributor, redistributed integrity from core (-112) 34575 | -1/Command | Core integrity fell below 50% 34750 | -1/Command | Spotted B-99 Colossus 34769 | -1/Command | Destroyed B-99 Colossus 34790 | -1/Command | Discovered new exit (range 18) 34792 | -1/Command | Found Multirail 34832 | -1/Command | Build established: Alien-Gunner 35587 | -1/Command | Warped through subspace to slip node 35587 | -1/Command | Discovered new exit (range 5) 35598 | -1/Command | Entered Access_0 35599 | -1/Access_0 | Sensed 2 artifacts in vicinity 35601 | -1/Access_0 | Met Architect 35622 | -1/Access_0 | Architect warped through subspace 35632 | -1/Access_0 | Destroyed A8 35649 | -1/Access_0 | Found Modified Quantum Sheargun 35677 | -1/Access_0 | Architect warped through subspace 35685 | -1/Access_0 | Found Modified Quantum Sheargun 35745 | -1/Access_0 | Architect warped through subspace 35790 | -1/Access_0 | Architect warped through subspace 35828 | -1/Access_0 | Architect warped through subspace 35863 | -1/Access_0 | Architect warped through subspace 35866 | -1/Access_0 | Found Prototype Device 35870 | -1/Access_0 | Found Prototype Device 35870 | -1/Access_0 | Identified Exp. Phase Shifter 35873 | -1/Access_0 | Found Prototype Device 35873 | -1/Access_0 | Identified Exp. Weapon Cycler 35875 | -1/Access_0 | Found Exp. Targeting Computer 35882 | -1/Access_0 | Found Exp. Phase Shifter 35895 | -1/Access_0 | Architect warped through subspace 35909 | -1/Access_0 | Found Modified Quantum Sheargun 35910 | -1/Access_0 | Subspace Access Node disabled 35931 | -1/Access_0 | Architect warped through subspace 35936 | -1/Access_0 | Found Modified Quantum Sheargun 35947 | -1/Access_0 | Subspace Access Node disabled 35954 | -1/Access_0 | Architect warped through subspace 35975 | -1/Access_0 | Architect warped through subspace 35987 | -1/Access_0 | Found Exp. Phase Shifter 35997 | -1/Access_0 | Architect warped through subspace 36014 | -1/Access_0 | A6 warped into view 36029 | -1/Access_0 | Emitted hypermatrix ping 36032 | -1/Access_0 | Destroyed A6 36034 | -1/Access_0 | Assembled emerged from beneath the floor 36041 | -1/Access_0 | Found Exp. Weapon Cycler 36079 | -1/Access_0 | Architect warped through subspace 36113 | -1/Access_0 | Architect warped through subspace 36148 | -1/Access_0 | Architect warped through subspace 36182 | -1/Access_0 | Architect warped through subspace 36212 | -1/Access_0 | Architect warped through subspace 36233 | -1/Access_0 | Architect warped through subspace 36274 | -1/Access_0 | Architect warped through subspace 36276 | -1/Access_0 | Found Core Regenerator 36276 | -1/Access_0 | Used Core Regenerator, restored core integrity (+400) 36288 | -1/Access_0 | Found Modified Quantum Sheargun 36321 | -1/Access_0 | Architect warped through subspace 36367 | -1/Access_0 | Architect warped through subspace 36440 | -1/Access_0 | Architect warped through subspace 36445 | -1/Access_0 | Found Prototype Protection 36445 | -1/Access_0 | Identified Centrium Linked Plating 36448 | -1/Access_0 | Found Centrium Linked Plating 36471 | -1/Access_0 | Architect warped through subspace 36472 | -1/Access_0 | Found Centrium Linked Plating 36500 | -1/Access_0 | Architect warped through subspace 36512 | -1/Access_0 | Found Modified Quantum Sheargun 36524 | -1/Access_0 | Architect warped through subspace 36569 | -1/Access_0 | Architect warped through subspace 36574 | -1/Access_0 | Found Zero-point Reactor 36576 | -1/Access_0 | Found Modified Quantum Sheargun 36592 | -1/Access_0 | Architect warped through subspace 36631 | -1/Access_0 | Architect warped through subspace 36679 | -1/Access_0 | Architect warped through subspace 36727 | -1/Access_0 | Architect warped through subspace 36778 | -1/Access_0 | Architect warped through subspace 36839 | -1/Access_0 | Architect warped through subspace 36858 | -1/Access_0 | Found Exp. Powered Armor 36860 | -1/Access_0 | Found Exp. Powered Armor 36873 | -1/Access_0 | A4 warped into view 36875 | -1/Access_0 | Found Modified Quantum Sheargun 36890 | -1/Access_0 | Destroyed A4 36897 | -1/Access_0 | Architect warped through subspace 36905 | -1/Access_0 | Found Centrium Linked Plating 36954 | -1/Access_0 | Architect warped through subspace 37016 | -1/Access_0 | Architect warped through subspace 37080 | -1/Access_0 | Architect warped through subspace 37088 | -1/Access_0 | Found Zero-point Reactor 37138 | -1/Access_0 | Architect warped through subspace 37192 | -1/Access_0 | Architect warped through subspace 37226 | -1/Access_0 | Found Centrium Linked Plating 37239 | -1/Access_0 | Architect warped through subspace 37268 | -1/Access_0 | Found Exp. Targeting Computer 37294 | -1/Access_0 | Architect warped through subspace 37313 | -1/Access_0 | Used Terrabomb 37335 | -1/Access_0 | Architect warped through subspace 37366 | -1/Access_0 | Architect warped through subspace 37399 | -1/Access_0 | Architect warped through subspace 37434 | -1/Access_0 | Architect warped through subspace 37467 | -1/Access_0 | Architect warped through subspace 37474 | -1/Access_0 | Found Exp. Powered Armor 37487 | -1/Access_0 | Found Exp. Powered Armor 37501 | -1/Access_0 | Architect warped through subspace 37506 | -1/Access_0 | Found Modified Quantum Sheargun 37544 | -1/Access_0 | Architect warped through subspace 37565 | -1/Access_0 | Found Exp. Phase Shifter 37596 | -1/Access_0 | Architect warped through subspace 37611 | -1/Access_0 | Subspace Access Node disabled 37632 | -1/Access_0 | Architect warped through subspace 37663 | -1/Access_0 | Architect warped through subspace 37694 | -1/Access_0 | Architect warped through subspace 37714 | -1/Access_0 | Architect warped through subspace 37735 | -1/Access_0 | Architect warped through subspace 37737 | -1/Access_0 | Found Zero-point Reactor 37740 | -1/Access_0 | Found Centrium Linked Plating 37751 | -1/Access_0 | Architect warped through subspace 37764 | -1/Access_0 | Architect warped through subspace 37774 | -1/Access_0 | Found Centrium Linked Plating 37781 | -1/Access_0 | Architect warped through subspace 37785 | -1/Access_0 | Found Centrium Linked Plating 37791 | -1/Access_0 | Core integrity fell below 20% 37798 | -1/Access_0 | Subspace Access Node disabled 37836 | -1/Access_0 | Found Centrium Linked Plating 37838 | -1/Access_0 | Lost 8 parts (1p3u4w) 37860 | -1/Access_0 | Found Exp. Powered Armor 37886 | -1/Access_0 | Found Exp. Powered Armor 37971 | -1/Access_0 | Found Exp. Weapon Cycler 38030 | -1/Access_0 | Build established: Alien-Tank 38165 | -1/Access_0 | A3 warped into view 38202 | -1/Access_0 | Destroyed A2 38272 | -1/Access_0 | Extracted Singularity Gate Test 138-C access codes from A2's data core 38326 | -1/Access_0 | Destroyed A3 38405 | -1/Access_0 | Build established: Scavenger-Tank 38591 | -1/Access_0 | Singularity Gate disabled 39289 | -1/Access_0 | Destroyed Architect 39295 | -1/Access_0 | Extracted unknown sensor trigger ID from Architect's data core 41290 | -1/Access_0 | Warped through subspace to slip node 41290 | -1/Access_0 | Discovered new exit (range 8) 41300 | *** | Heading to fleet! Last Messages --------------- 40667_ The protective shell folds into the floor. 40674_ Connecting with Architect Logs... 40674_ Current location identified: Access_0 40679_ System corrupted: Energy discharge (-129). 40925_ Acquired 100 matter. 41030_ Acquired 20 matter. 41032_ Acquired 14 matter. 41142_ HV Slug penetrates Workstation. 41142_ Slug penetrates Workstation. 41145_ HV Slug penetrates Workstation. 41145_ Slug penetrates Workstation. 41149_ HV Slug penetrates Workstation. 41149_ Slug penetrates Workstation. 41149_ System corrupted: Graviton Cannon targeting data glitched. 41149_ Slug penetrates Workstation. 41149_ Workstation disabled. 41183_ S8:Z#W43O=,ONAB0E<,DZHBJRVQCRHJQ% GJQX0 41229_ System corrupted: Energy discharge (-110). 41290_ Warped through subspace, drawn to slip node. 41290_ EXIT=FOUND Map ----- +----------------------------------------------------+ | | | | | | | | | | | | | | | | | | | | | | | | | | | | | | | | | ?????????????????????????????????????????????????? | | ?????????????????????????????????????????????????? | | ?????????????????????????????????????????????????? | | ?????????????????????????????????????????????????? | | ?????????????????????????????????????????????????? | | ?????????????????????????????????????????????????? | | ????????????????????????###??????????????????????? | | ???????????????????????## ##?????????????????????? | | ???????????????????????# #?????????????????????? | | ???????????????????????# @ #?????????????????????? | | ??????????????????????## #?????????????????????? | | ??????????????????????# #?????????????????????? | | ??????????????????????# ##?????????????????????? | | ??????????????????????## #?????????????????????? | | ??????????????????????# #?????????????????????? | | ??????????????????????# ##?????????????????????? | | ??????????????????????# < #?????????????????????? | | ??????????????????????# ##?????????????????????? | | ??????????????????????## #??????????????????????? | | ???????????????????????####??????????????????????? | | ?????????????????????????????????????????????????? | | ?????????????????????????????????????????????????? | | ?????????????????????????????????????????????????? | | ?????????????????????????????????????????????????? | | ?????????????????????????????????????????????????? | | ?????????????????????????????????????????????????? | | ?????????????????????????????????????????????????? | | ?????????????????????????????????????????????????? | | ?????????????????????????????????????????????????? | | ?????????????????????????????????????????????????? | | ?????????????????????????????????????????????????? | | ?????????????????????????????????????????????????? | | ?????????????????????????????????????????????????? | | ?????????????????????????????????????????????????? | +----------------------------------------------------+ Best States ------------- Heat Dissipation 188 Coolant Potential 220 Energy Generation 111 Energy Capacity 2380 Matter Stores 700 Matter Capacity 700 Sight Range 24 Robot Scan Range 10 Terrain Scan Range 16 Terrain Scan Density 60 Power Amplification 40 EM Shielding 4 Armor Coverage 9200 Resistance: KI 30 Resistance: TH 50 Resistance: EM 90 Core Shielding 30 Propulsion Shielding 33 Utility Shielding 66 Weapon Shielding 90 Reclamation Efficiency 20 Weapon Cycling 30 Phase Shifting 20 Evasion (%) 60 Targeting Accuracy 24 Launcher Accuracy 30 Target Analysis 12 Core Analysis 15 Armor Integrity Analysis 66 Recoil Reduction 5 Matter Filtering 50 Particle Charging 25 Kinecelleration 50 Overload Amplification 100 Salvage Targeting 2 Offensive Hacking 35 Defensive Hacking 10 Relay Coupler Types 53 Relay Coupler Value 3 Item Schematics ----------------- None Robot Schematics ------------------ None Fabricated ------------ Nothing Alien Tech Used ----------------- Integrated Dissipator Core Expander Stasis Generator Phase Redirector Core Stripper Core Reset Matrix Integrated Reactor Subatomic Replicator Integrated Singularity Reactor Matter Drive LRC Matter Compressor Integrity Redistributor Sigix Quantum Sheargun High-powered Transdimensional Reconstructor Modified Quantum Sheargun Core Regenerator Terrabomb Transdimensional Reconstructor Achievements -------------- None Challenges ------------ None Game ------ Seed AlertFissionDoublenader Manual? 0 Play Time 06:42:00 Cumulative 1752.8 hours Start 2020.11.04 @ 05:15:53 End 2020.11.04 @ 13:16:23 Sessions 3 Manual Loads 0 Difficulty Rogue Special Mode None Game No. 2502 Rogue 2494 Adventurer 0 Explorer 8 Win Type 2 Total 171 Types 41/23/67/3/3/5/26/2/1 Lore% 99 Gallery% 99 Achievement% 100 Wizard Run 0 Options --------- ASCII 0 Keyboard 1 Movement Numpad Keybinds 1 Fullscreen 1 Font 18/SmallcapsGlow Map View 76x50 Tactical HUD 1 Map Filters NONE Filters NONE Steam 1 RUN: 3bd762c1-f93c-4649-b1f1-f52c9012901a